Cogmind - Beta 10.1 @@@ ROGUE MODE // 2020.10.06 @ 02:46:24 Player: Botnethulhuw7 Result: Establishing Free Derelict Territories! Performance ------------- Evolutions (9) 4500 Regions Visited (35) 7000 Robots Destroyed (329) 1645 Value Destroyed (15866) 15866 Prototype IDs (250) 5000 Alien Tech Used (12) 2400 Bonus (40765) 40765 TOTAL SCORE: 77176 Bonus ------- High Alert Combat Kills 1263 Follower Combat Kills 2283 Network Hubs Disabled 200 Aligned with FarCom 300 Met Data Miner 300 Used Data Conduit 3000 Met Warlord at Base 500 MAIN.C Attacked Warlord 500 Built Enhanced Grunts 300 Met R17 at Cetus 500 Found Hidden Lab 3000 Met R17 at Research 2000 Scanned by Researcher 500 Pursued by Intercept 2000 Destroyed MAIN.C Guards 500 Met MAIN.C 5000 Destroyed MAIN.C Shell 5000 Destroyed MAIN.C 10000 Met Warlord at Command 2000 Win 3000 Friendly Fire -1381 Cogmind --------- Core Integrity 1487/1600 Matter 320/550 Energy 950/950 System Corruption 0% Temperature Cool (128) Movement Immobile (Siege) Ox1 Location Free Derelict Territories Parts ------- > --- POWER (3) -------- Vortex Chain Reactor > --- PROPULSION (5) --- Biometal Medium Treads Biometal Heavy Treads High-density Centrium Heavy Treads > --- UTILITY (14) ----- Experimental Coolant Injector High-capacity Storage Unit High-capacity Storage Unit High-capacity Storage Unit Experimental Targeting Computer Advanced Armor Integrity Analyzer Matter Filter Experimental Weapon Cycler Heavy Regenerative Plating Experimental Focal Shield Matter Drive Stasis Generator > --- WEAPON (4) ------- Hypercooled Linear Accelerator Hypercooled Linear Accelerator Omega Cannon > --- INVENTORY (28) --- Biometal Heavy Treads Advanced Cooling System Advanced Matter Compressor (400) Experimental Matter Compressor (500) Long-range Sensor Array Improved Weapon Cycler Improved Thermal Shield EM Dispersion Field Experimental Force Field System Purifier Long-range Tractor Beam Integrity Redistributor Integrity Redistributor Subatomic Replicator HERF Cannon Enhanced Nova Cannon Potential Cannon Helical Railgun Hypercooled Linear Accelerator Fusion Bomb Launcher Sigix Broadsword Peak State ------------ > --- POWER ------------ Improved Quantum Reactor Vortex Chain Reactor > --- PROPULSION ------- Biometal Medium Treads Biometal Heavy Treads High-density Centrium Heavy Treads > --- UTILITY ---------- Advanced Cooling System Experimental Coolant Injector High-capacity Storage Unit High-capacity Storage Unit High-capacity Storage Unit Experimental Targeting Computer Advanced Armor Integrity Analyzer Experimental Weapon Cycler Experimental Focal Shield Improved Thermal Shield EM Dispersion Field Matter Drive Stasis Generator > --- WEAPON ----------- Potential Cannon Sigix Broadsword > --- INVENTORY -------- Biometal Heavy Treads Advanced Heavy Siege Treads Advanced Matter Compressor Experimental Matter Compressor Long-range Sensor Array Matter Filter Improved Weapon Cycler Advanced Transmission Jammer Heavy Regenerative Plating Experimental Force Field System Purifier Long-range Tractor Beam Integrity Redistributor Integrity Redistributor Subatomic Replicator HERF Cannon Enhanced Nova Cannon Helical Railgun Hypercooled Linear Accelerator Hypercooled Linear Accelerator Hypercooled Linear Accelerator Omega Cannon Fusion Bomb Launcher [Rating: 255] Favorites ----------- Power Vortex Chain Reactor Engine Ion Engine Power Core Light Neutrino Core Reactor Vortex Chain Reactor Propulsion Light Treads Treads Light Treads Leg Carbon-fiber Leg Wheel Armored Huge Wheel Hover Unit Backup Propulsion I Flight Unit Nuclear Pulse Thruster Utility High-capacity Storage Unit Device Experimental Sensor Array Storage High-capacity Storage Unit Processor Experimental Targeting Computer Hackware Ghost Barrier Protection Heavy Regenerative Plating Artifact Stasis Generator Weapon Shotgun Energy Gun Backup Laser I Energy Cannon Firepult Ballistic Gun Shotgun Ballistic Cannon Hypercooled Linear Accelerator Launcher Gamma Bomb Array Special Weapon Improved Plasma Cutter Impact Weapon Makeshift Hammer Slashing Weapon Sigix Broadsword Piercing Weapon Plasma Lance Build | -11 -10 -10 -9 -9 -9 -8 -8 -7 -7 -7 -7 -7 -7 -6 -6 -6 -6 -6 -6 -5 -5 -5 -5 -4 -4 -4 -4 -4 -4 -3 -3 -3 -2 -1 -1 ------- Run | Scr Mat Min Mat Min Exi Min Mat Fac Was Fac Low Low Dat Pro Fac Ext Cet Arc Hub Fac Upp Upp War Pro Fac Was Fac Arm Lab Res Qua Sec Res Acc Com Slots Evolved 17 | . . . 2 . . . 2 2 . . . . . . 2 . . . . 2 . . . . 2 . . . . 2 . . 2 1 . Power 1 | . . . . . . . . . . . . . . . . . . . . 1 . . . . . . . . . . . . . . . Propulsion 2 | . . . . . . . . . . . . . . . 2 . . . . . . . . . . . . . . . . . . . . Utility 12 | . . . . . . . 2 2 . . . . . . . . . . . 1 . . . . 2 . . . . 2 . . 2 1 . Weapon 2 | . . . 2 . . . . . . . . . . . . . . . . . . . . . . . . . . . . . . . . Parts Attached 501 | 9 11 7 10 5 25 . 44 15 8 26 25 3 5 17 4 10 6 2 2 6 1 2 18 . 3 . 2 39 3 9 55 48 11 17 53 Power 21 | 1 . 1 1 1 1 . 3 . 1 1 . . 1 1 1 . . . . 2 . . 1 . . . . 3 . . . 1 1 . . Engine 10 | 1 . 1 1 1 . . 3 . . 1 . . . 1 . . . . . 1 . . . . . . . . . . . . . . . Core 4 | . . . . . 1 . . . . . . . . . . . . . . 1 . . . . . . . 2 . . . . . . . Reactor 7 | . . . . . . . . . 1 . . . 1 . 1 . . . . . . . 1 . . . . 1 . . . 1 1 . . Propulsion 63 | 2 . 1 3 2 5 . 7 4 . 6 1 . . 2 . 4 3 . . 1 . . 2 . 1 . . 3 1 1 11 1 2 . . Treads 41 | 2 . 1 3 2 1 . 6 2 . 3 1 . . . . . 1 . . . . . . . . . . 3 1 1 11 1 2 . . Leg 11 | . . . . . 4 . 1 . . . . . . . . 4 2 . . . . . . . . . . . . . . . . . . Wheel 5 | . . . . . . . . 2 . 3 . . . . . . . . . . . . . . . . . . . . . . . . . Hover . | . . . . . . . . . . . . . . . . . . . . . . . . . . . . . . . . . . . . Flight 6 | . . . . . . . . . . . . . . 2 . . . . . 1 . . 2 . 1 . . . . . . . . . . Utility 260 | 3 3 3 2 1 9 . 11 5 5 15 19 3 2 10 3 5 3 2 2 3 1 1 10 . 2 . 2 16 1 4 34 40 7 6 27 Device 168 | 3 2 . . . 5 . 2 4 2 11 18 2 . 4 2 4 3 . . 3 . 1 10 . 1 . 1 10 . 2 24 32 5 4 13 Storage 21 | . . . 2 . 3 . 4 . . . . . . 1 . . . . 1 . . . . . . . . 1 . 1 2 3 1 1 1 Processor 11 | . 1 . . 1 . . . . . . . . . . 1 1 . . . . . . . . 1 . . 1 . . 2 1 1 . 1 Hackware 12 | . . . . . . . 1 . . 2 . . . 2 . . . 2 . . . . . . . . . . . 1 1 . . . 3 Protection 35 | . . 3 . . 1 . 4 1 3 2 1 1 2 3 . . . . 1 . 1 . . . . . 1 4 1 . 3 2 . . 1 Artifact 13 | . . . . . . . . . . . . . . . . . . . . . . . . . . . . . . . 2 2 . 1 8 Weapon 157 | 3 8 2 4 1 10 . 23 6 2 4 5 . 2 4 . 1 . . . . . 1 5 . . . . 17 1 4 10 6 1 11 26 Energy Gun 5 | 2 2 . . . . . . . . . . . . . . . . . . . . . 1 . . . . . . . . . . . . Energy Cannon 35 | . . . . . 1 . 2 1 . . 2 . 1 1 . . . . . . . . . . . . . 9 . 3 1 . 1 6 7 Ballistic Gun 49 | 1 3 1 3 . 5 . 16 2 2 4 . . 1 1 . . . . . . . . . . . . . 2 . . 1 . . . 7 Ballistic Cannon 20 | . . . . . . . . . . . . . . . . . . . . . . . . . . . . . . . 4 3 . 5 8 Launcher 19 | . . 1 1 1 3 . 1 . . . 2 . . 1 . . . . . . . . . . . . . 5 . . 1 . . . 3 Special Weapon 4 | . 2 . . . . . . . . . . . . . . . . . . . . . . . . . . . . 1 . . . . 1 Impact Weapon 2 | . 1 . . . . . . . . . . . . 1 . . . . . . . . . . . . . . . . . . . . . Slashing Weapon 12 | . . . . . 1 . 4 3 . . 1 . . . . 1 . . . . . . . . . . . 1 . . 1 . . . . Piercing Weapon 11 | . . . . . . . . . . . . . . . . . . . . . . 1 4 . . . . . 1 . 2 3 . . . Special Melee Weapon . | . . . . . . . . . . . . . . . . . . . . . . . . . . . . . . . . . . . . Unidentified Prototypes 21 | . . . 1 . 5 . 1 . . . . . . 2 . . . . . . . . 1 . . . . . 3 . 3 4 . . 1 Parts Lost 18 | . . 2 . 3 2 . . . . . . . . . . . . . 2 . . . . . . . . 2 . . 2 3 . 1 1 Power 1 | . . . . . . . . . . . . . . . . . . . . . . . . . . . . . . . . . . . 1 Propulsion 3 | . . . . 1 1 . . . . . . . . . . . . . 1 . . . . . . . . . . . . . . . . Utility 10 | . . 2 . 1 . . . . . . . . . . . . . . . . . . . . . . . 1 . . 2 3 . 1 . Weapon 4 | . . . . 1 1 . . . . . . . . . . . . . 1 . . . . . . . . 1 . . . . . . . Highest Loss Streak 3 | . . 2 . 3 1 . . . . . . . . . . . . . 2 . . . . . . . . 1 . . 1 1 . 1 1 Average Slot Usage (%) 81 | . 100 99 100 99 82 66 93 93 78 91 77 84 73 73 58 67 62 66 67 76 82 82 84 82 75 78 78 84 78 78 81 74 74 73 75 Engine 4 | . 14 14 11 11 9 . 8 7 3 4 7 7 3 . 2 6 6 6 6 8 11 11 1 . . . . . . . . . . . . Reactor 2 | . . . . . . . . . 3 2 . . 3 5 3 . . . . . . . 4 5 5 5 5 4 5 4 4 4 5 7 7 Treads 11 | . 28 28 22 21 17 . 9 3 . . 5 7 7 4 . . . . . . . . . . . . . 8 10 11 17 14 11 11 11 Leg 1 | . . . . . 4 22 8 . . . . . . . . 8 2 6 2 . . . . . . . . . . . . . . . . Flight 2 | . . . . . . . . . . . . . . 3 13 13 13 13 12 8 11 11 21 23 18 15 15 1 . . . . . . . Device 12 | . 23 5 . . 5 11 7 7 12 6 15 22 17 18 14 12 13 8 5 16 16 11 19 23 23 26 26 15 17 17 10 10 13 22 22 Storage 10 | . . . 4 11 10 11 19 23 23 23 23 23 23 18 . . . . 1 . . . . . . . . 4 5 7 11 14 15 11 12 Processor 4 | . 4 . . 9 . . . . . . . . . . 2 4 6 6 6 5 5 5 5 5 7 10 10 10 10 9 5 3 5 7 7 Hackware 4 | . . . . . . . . . . . . . . . 13 13 13 17 24 17 17 16 11 11 10 10 10 5 5 4 7 4 4 2 . Protection 5 | . . 21 17 . 4 . 8 15 3 14 7 . 5 1 . . . . 1 . . 5 2 . . . . 8 5 4 5 8 6 3 1 Energy Cannon 2 | . . . . . 5 . 1 . 6 . 5 7 . 3 . . . . . . . . . . . . . 7 10 8 4 . . 1 . Ballistic Gun 8 | . 9 27 43 33 14 11 24 28 15 29 7 7 4 2 . . . . . . . . . . . . . 1 5 1 . . . . 1 Ballistic Cannon 1 | . . . . . . . . . . . . . . . . . . . . . . . . . . . . . . . 1 7 7 . . Launcher 1 | . . . . 10 8 . 2 . . . . . . 4 . . . . . . . . . . . . . 6 4 . 1 . . . . Slashing Weapon 2 | . . . . . . . 2 1 . . 1 7 7 7 4 5 6 6 5 . . . . . . . . 1 . . 2 4 4 3 2 Piercing Weapon 1 | . . . . . . . . . . . . . . . . . . . . . . . 7 11 10 10 10 2 . 4 2 . . . . Naked Turns . | . . . . . . . . . . . . . . . . . . . . . . . . . . . . . . . . . . . . Heaviest Build 225 | 11 13 19 55 39 73 63 106 123 169 122 132 125 111 136 16 16 16 16 13 23 23 27 57 44 45 45 52 123 122 132 180 182 197 225 223 Greatest Support 200 | 40 40 40 40 40 50 50 50 40 28 70 70 70 70 70 16 30 37 16 16 31 31 31 49 49 54 54 54 176 160 188 188 180 200 200 200 Greatest Overweight (x) 36 | . . . 1 . 2 1 2 4 6 4 4 1 1 36 . 5 1 . . . . . 1 . . . . 1 . . 4 1 . 1 1 Average Overweight (x) . | . . . . . . 1 1 2 4 3 1 1 1 . . . . . . . . . . . . . . . . . . . . . . Largest Inventory Capacity 34 | 4 4 4 12 10 18 12 26 26 26 26 26 26 26 26 4 4 4 4 4 4 4 4 4 4 4 4 4 10 10 14 22 22 22 26 34 Average Capacity 16 | 4 4 4 6 10 10 12 18 26 26 26 26 26 26 20 4 4 4 4 4 4 4 4 4 4 4 4 4 9 10 13 20 22 22 25 29 Most Carried 34 | 4 4 4 10 9 18 12 24 26 26 26 26 21 26 26 4 4 4 4 4 4 4 4 4 4 4 4 4 10 10 12 22 22 22 26 34 Average Carried 14 | 1 3 3 4 8 8 12 16 24 25 25 23 21 24 16 3 2 3 4 3 3 4 3 3 4 4 4 3 9 9 10 19 20 21 23 26 Final Capacity 28 | 4 4 4 10 10 12 12 26 26 26 26 26 26 26 4 4 4 4 4 4 4 4 4 4 4 4 4 4 10 10 14 22 22 22 26 28 Final Carried 26 | 4 4 4 8 9 12 12 24 24 25 26 21 21 26 1 4 4 4 4 4 4 4 3 4 4 4 4 4 10 10 12 20 22 22 25 24 Class Distribution -------------------- 32% | Scavenger-Mutant 25% | Hacker-Mutant 8% | Hauler-Tank 8% | Mutant 7% | Generator-Mutant 6% | Hauler-Mutant Dominant Class ---------------- Mutant | -10/Materials Mutant | -10/Mines Tank | -9/Materials Scavenger-Mutant | -9/Mines Scavenger-Mutant | -9/Exiles Gunner | -8/Mines Hauler-Tank | -8/Materials Hauler-Tank | -7/Factory Hauler-Mutant | -7/Waste Hauler-Tank | -7/Factory Hauler-Mutant | -7/Lower Caves Hauler-Mutant | -7/Lower Caves Hauler-Mutant | -7/Data Miner Hauler-Mutant | -6/Proximity Caves Hacker-Mutant | -6/Factory Hacker-Mutant | -6/Extension Hacker-Mutant | -6/Cetus Hacker-Mutant | -6/Archives Wizard-Mutant | -6/Hub_04(d) Hacker-Mutant | -5/Factory Hacker-Mutant | -5/Upper Caves Hacker-Mutant | -5/Upper Caves Hacker-Mutant | -5/Warlord Hacker-Sprinter | -4/Proximity Caves Hacker-Sprinter | -4/Factory Hacker-Scout | -4/Waste Hacker-Ninja | -4/Factory Hacker-Mutant | -4/Armory Hacker-Mutant | -4/Lab Scavenger-Mutant | -3/Research Hacker-Mutant | -3/Quarantine Scavenger-Mutant | -3/Section 7 Scavenger-Mutant | -2/Research Generator-Mutant | -1/Access Scavenger-Mutant | -1/Command Resources | -11 -10 -10 -9 -9 -9 -8 -8 -7 -7 -7 -7 -7 -7 -6 -6 -6 -6 -6 -6 -5 -5 -5 -5 -4 -4 -4 -4 -4 -4 -3 -3 -3 -2 -1 -1 ----------- Run | Scr Mat Min Mat Min Exi Min Mat Fac Was Fac Low Low Dat Pro Fac Ext Cet Arc Hub Fac Upp Upp War Pro Fac Was Fac Arm Lab Res Qua Sec Res Acc Com Matter Collected 13096 | 299 42 257 561 433 702 . 1109 202 309 852 441 39 339 252 137 275 60 20 . . 74 30 180 . . . 50 619 . 257 1517 1525 533 151 1831 Remotely 1935 | 138 42 89 . . . . . . 299 . 356 39 . . 28 . . . . . . . . . . . . . . . 40 307 . . 597 Salvage Created 17195 | 159 42 134 713 297 534 79 1236 71 1747 706 582 46 424 182 137 128 120 141 . . . . . . . . 287 2072 . 258 1315 1624 230 1135 2796 Parts 734 | 12 2 23 45 16 39 3 68 2 15 36 7 1 12 10 7 6 4 10 . . . . . . . . 12 105 . 8 58 94 5 39 95 Haulers Intercepted 12 | . . . 4 . . . 4 . . . . . . . . 1 . . . . . . . . . . 2 . . 1 . . . . . Recyclers Shooed 6 | . . . 3 2 . . 1 . . . . . . . . . . . . . . . . . . . . . . . . . . . . Parts Field Recycled . | . . . . . . . . . . . . . . . . . . . . . . . . . . . . . . . . . . . . Retrieved Matter . | . . . . . . . . . . . . . . . . . . . . . . . . . . . . . . . . . . . . Parts Self-Destructed 102 | . . . . . . . . . . . 3 1 . 3 . . . . . . 4 3 88 . . . . . . . . . . . . Prevented 28 | . . . . . . . . . . . . . . . . . . . . . . . 28 . . . . . . . . . . . . Kills | -11 -10 -10 -9 -9 -9 -8 -8 -7 -7 -7 -7 -7 -7 -6 -6 -6 -6 -6 -6 -5 -5 -5 -5 -4 -4 -4 -4 -4 -4 -3 -3 -3 -2 -1 -1 ------- Run | Scr Mat Min Mat Min Exi Min Mat Fac Was Fac Low Low Dat Pro Fac Ext Cet Arc Hub Fac Upp Upp War Pro Fac Was Fac Arm Lab Res Qua Sec Res Acc Com Combat Hostiles Destroyed 236 | . 1 10 17 17 7 1 22 1 6 10 9 1 4 7 . . . . . . . . . . . . . 34 . 1 11 26 4 18 29 Melee 39 | . . . . . 1 . . . . . . . . 1 . . . . . . . . . . . . . 1 . . 1 12 . 13 10 Guns 50 | . 1 7 13 5 2 1 6 1 . 10 . . . . . . . . . . . . . . . . . . . . . . . . 4 Cannons 44 | . . . . . . . 1 . . . . 1 . 1 . . . . . . . . . . . . . 16 . 1 . 14 4 3 3 AOE 70 | . . 3 4 12 4 . 13 . . . 7 . . 4 . . . . . . . . . . . . . 12 . . . . . 1 10 Classes Destroyed 27 | 2 1 2 3 3 2 . 4 . 1 1 3 . . . . . . . . . . . . . . . . . . . 2 1 1 . 1 Worker 20 | . . . 2 . . 1 4 . . 1 . . . . 2 . . . . . . . . . . . . . . 2 . . . . 8 Builder 4 | . . . . 1 . . 1 . . . . . . . . . . . . . . . . . . . . . . 1 . 1 . . . Tunneler 8 | 3 . 2 . . . . 2 . . . . . . . . . . . . . . . . . . . . . . . . . . 1 . Hauler 12 | . . . 4 . . . 4 . . . . . . . . 1 . . . . . . . . . . 2 . . 1 . . . . . Recycler 15 | 1 . . 1 1 . . 2 . . 4 . . . . 1 . . . . . . . . . . . . . . 1 . 1 . 1 2 Operator 10 | . . . . . . . 2 . . . . . . . . 1 . 4 . . . . . . . . . . . . . . . . 3 Turret 1 | . . . . . 1 . . . . . . . . . . . . . . . . . . . . . . . . . . . . . . Watcher 5 | . . . . . . . 1 . . . . . . . . 1 . . . . . . . . . . 2 1 . . . . . . . Swarmer 52 | . . 9 8 . . . 7 . . 6 . . . . . . . . . . . . . . . . . 9 . . . 4 . 4 5 Saboteur 1 | . . . . . . . . . . . . . . . . . . . . . . . . . . . . . . . . . . . 1 Grunt 39 | . 1 . 7 3 . 1 7 . . . 6 . . . . . . . . . . . . . . . . 4 . . . . . 3 7 Brawler 7 | . . . 1 . . . . . . 1 . . . . . . . . . . . . . . . . . 3 . . . . . 1 1 Duelist 4 | . . . . . . . 3 . . . . . . . . . . . . . . . . . . . . . . . . . . . 1 Researcher 1 | . . . . . . . . . . . . . . . . . . . . . . . . . . . . . . . 1 . . . . Sentry 20 | . . 1 1 . . . 4 1 . 2 1 . . . . . . . . . . . . . . . . 3 . 1 . 3 . 2 1 Demolisher 8 | . . . . 2 . . . . . . . . . . . . . . . . . . . . . . . 5 . . . . 1 . . Hunter 7 | . . . . . . . 1 . . . . 1 . . . . . . . . . . . . . . . . . . . 1 2 2 . Programmer 35 | . . . . . . . . . . 1 . . . 1 . . . . . . . . . . . . . 9 . . . 13 . 4 7 Behemoth 3 | . . . . . . . . . . . 1 . . 1 . . . . . . . . . . . . . 1 . . . . . . . Compactor 6 | . . . . . . . . . 6 . . . . . . . . . . . . . . . . . . . . . . . . . . Quarantine Guard 6 | . . . . . . . . . . . . . . . . . . . . . . . . . . . . . . . 6 . . . . S7 Guard 1 | . . . . . . . . . . . . . . . . . . . . . . . . . . . . . . . . 1 . . . M Guard 2 | . . . . . . . . . . . . . . . . . . . . . . . . . . . . . . . . . . . 2 Enhanced Grunt 4 | . . . . . . . . . . . . . 4 . . . . . . . . . . . . . . . . . . . . . . Tracker 5 | . . . . . . . . . . . . . . . . . . . . . . . . . . . . . . . 2 1 . 2 . Combat Programmer 5 | . . . . . . . . . . . . . . . . . . . . . . . . . . . . . . . 2 1 . . 2 Striker 1 | . . . . . . . . . . . . . . . . . . . . . . . . . . . . . . . . . 1 . . Executioner 2 | . . . . . . . . . . . . . . . . . . . . . . . . . . . . . . . . 2 . . . Fortress 1 | . . . . . . . . . . . . . . . . . . . . . . . . . . . . . . . 1 . . . . Zionite 8 | . . . . . 8 . . . . . . . . . . . . . . . . . . . . . . . . . . . . . . Thief 1 | . . . . . . . . . . . 1 . . . . . . . . . . . . . . . . . . . . . . . . Master Thief 5 | . . . . . . . . . . . . . . 5 . . . . . . . . . . . . . . . . . . . . . Assembled 18 | . . . . 12 6 . . . . . . . . . . . . . . . . . . . . . . . . . . . . . . Savage 1 | . . . . . . . . . . . 1 . . . . . . . . . . . . . . . . . . . . . . . . Guerrilla 2 | . . . . . . . . . . . . . . . . . 1 . . . . . . . . . . . . . . . . . 1 Mutant 1 | . . . . . . . . . . . 1 . . . . . . . . . . . . . . . . . . . . . . . . Best Kill Streak 12 | 3 1 3 7 5 5 2 12 1 2 4 5 1 5 5 2 1 . 4 . . . . . . . . 2 7 . 3 6 3 2 4 9 Combat Bots Only 10 | . 1 3 5 5 5 1 10 1 2 3 5 1 4 5 . . . . . . . . . . . . . 7 . 1 6 3 2 4 9 Max Kills in Single Turn 6 | 1 1 2 4 2 3 2 6 1 1 1 1 1 2 1 1 1 1 1 . . . . . . . . 1 3 . 1 2 1 1 1 3 Gunslinging 1 | . . . 1 . . . . . . . . . . . . . . . . . . . . . . . . . . . . . . . . Exploded 5 | . . 2 4 1 3 . 5 . . . 1 . . 1 . . . . . . . . . . . . . 3 . . . . . 1 3 Melee 1 | . . . . . 1 . . . . . . . . 1 . . . . . . . . . . . . . 1 . . 1 1 . 1 1 Uniques/NPCs Destroyed 8 | . . . . . 4 . . . . . . . 1 . . . 1 . . . . . . . . . . . . . . . . . 2 8R-AWN (-9/Exiles) EX-HEX (-9/Exiles) EX-BIN (-9/Exiles) EX-DEC (-9/Exiles) Data Miner (-7/Data Miner) A7 (-6/Cetus) MAIN.C Shell (-1/Command) MAIN.C (-1/Command) Combat | -11 -10 -10 -9 -9 -9 -8 -8 -7 -7 -7 -7 -7 -7 -6 -6 -6 -6 -6 -6 -5 -5 -5 -5 -4 -4 -4 -4 -4 -4 -3 -3 -3 -2 -1 -1 -------- Run | Scr Mat Min Mat Min Exi Min Mat Fac Was Fac Low Low Dat Pro Fac Ext Cet Arc Hub Fac Upp Upp War Pro Fac Was Fac Arm Lab Res Qua Sec Res Acc Com Damage Taken 19018 | . 36 231 356 695 889 133 532 46 . 1087 538 30 231 578 65 . 24 . 100 24 22 38 11 . . . 82 2466 . 196 3319 2661 125 888 3615 Core 1331 | . 6 35 21 120 125 . 52 16 . 56 10 9 . 26 35 . 15 . 32 24 . . 11 . . . . 106 . . 390 129 . 15 98 Absorbed by Shields 6166 | . . . . . . . . 19 . . . . . . . . 23 . . . . . . . . . . 493 . 60 16 2415 130 943 2067 Reduced by Siege Mode 975 | . . . . . . . . . . 18 18 . . 39 . . . . . . . . . . . . . 315 . 22 287 30 . 38 208 Redirected to Core 390 | . . . . . . . . . . . . . . . . . . . . . . . . . . . . . . . 390 . . . . Core Remaining (%) 82 | 100 . 83 . . . 33 90 . . . . . . 83 . . . . 90 . . . . 96 . . . . 90 . . 46 100 . 92 Volleys Fired 727 | 9 14 17 30 33 58 5 49 9 18 38 25 1 7 25 . . . . . 2 1 . . . . . . 100 10 34 77 67 14 19 65 Largest 4 | 2 2 2 4 4 1 1 4 4 1 4 4 1 1 2 . . . . . 2 2 . . . . . . 4 1 1 1 2 2 1 3 Hottest 320 | 70 100 46 92 99 250 60 250 96 250 112 250 250 250 289 . . . . . 60 60 . . . . . . 320 105 200 120 20 20 200 200 Shots Fired 1241 | 17 17 32 115 65 58 5 142 36 18 147 29 1 5 29 . . . . . 4 2 . . . . . . 136 10 34 77 127 28 19 88 Gun 626 | 17 6 30 114 41 33 5 124 36 1 147 4 . . 1 . . . . . 4 2 . . . . . . 20 . . . . . . 41 Cannon 462 | . . . . . 11 . 7 . 17 . 14 1 5 7 . . . . . . . . . . . . . 90 10 34 58 127 28 19 34 Launcher 141 | . . 2 1 24 14 . 11 . . . 11 . . 21 . . . . . . . . . . . . . 26 . . 19 . . . 12 Special 12 | . 11 . . . . . . . . . . . . . . . . . . . . . . . . . . . . . . . . . 1 Kinetic 783 | 9 6 30 114 41 33 5 124 36 1 147 4 . . 1 . . . . . . . . . . . . . 20 . . . 127 28 2 55 Thermal 316 | 8 11 . . . 11 . 7 . 17 . 14 1 5 7 . . . . . 4 2 . . . . . . 90 10 34 58 . . 17 20 Explosive 96 | . . 2 1 24 14 . 11 . . . 11 . . 21 . . . . . . . . . . . . . . . . . . . . 12 Electromagnetic 45 | . . . . . . . . . . . . . . . . . . . . . . . . . . . . 26 . . 19 . . . . Robot Hit Streak 56 | 4 7 5 9 8 9 7 12 12 16 10 22 3 11 15 . . . . . 4 . . . . . . . 34 . 29 24 56 5 13 32 Robot Miss Streak 10 | 1 2 6 10 6 4 2 3 4 2 7 4 1 1 4 . . . . . 2 4 . . . . . . 3 . 1 2 1 2 . 1 Penetration Max 1 | . . . . . . . . . . . . . . . . . . . . . . . . . . . . . . . . . . . 1 Secondary Targets 7 | . . . 4 2 . . . . . 1 . . . . . . . . . . . . . . . . . . . . . . . . . Max Gunslinging Chain 1 | . . . 1 1 . . . . . 1 . . . . . . . . . . . . . . . . . . . . . . . . . Shots Hit Robots 947 | 12 6 16 68 29 37 5 97 15 16 84 17 1 6 24 5 9 2 11 . 2 . . . . . . 5 87 . 19 71 119 9 47 128 Core Hits 609 | 5 2 13 37 37 48 3 59 4 14 30 22 2 15 16 3 3 2 4 . 1 1 . . . . . 4 87 . 5 47 38 6 24 77 Critical Hits 82 | . 1 . 4 . . . . . . 1 . . . . . . . . . . . . . . . . . 12 . . 9 16 1 17 21 Critical Kills 17 | . . . 1 . . . . . . . . . . . . . . . . . . . . . . . . . . . . 3 1 10 2 Critical Parts Destroyed 33 | . 1 . 3 . . . . . . 1 . . . . . . . . . . . . . . . . . 2 . . 3 6 . 7 10 Melee Attacks 452 | . 1 . . . . . 13 3 . . 2 . 1 11 9 10 2 11 6 . . . 15 . 1 . 8 14 . 20 42 106 5 54 118 Impact 1 | . 1 . . . . . . . . . . . . . . . . . . . . . . . . . . . . . . . . . . Slashing 372 | . . . . . . . 13 3 . . 2 . 1 11 9 10 2 11 6 . . . . . . . . 2 . . 29 96 5 54 118 Piercing 79 | . . . . . . . . . . . . . . . . . . . . . . . 15 . 1 . 8 12 . 20 13 10 . . . Sneak Attacks 33 | . . . . . . . 2 . . . 2 . 1 . 3 4 1 7 . . . . . . . . 2 . . 3 . 3 . 1 4 Combat Hostiles . | . . . . . . . . . . . . . . . . . . . . . . . . . . . . . . . . . . . . Follow-up Attacks 11 | . . . . . . . . . . . . . . . . . . . . . . . . . . . . . . . 8 3 . . . Damage Inflicted 58895 | 134 74 367 896 1121 2162 317 2774 223 1012 1359 1106 57 462 1659 471 700 152 1242 . 17 9 . . . . . 646 3964 . 1215 4738 11342 375 5548 14753 Guns 7183 | 127 72 195 707 285 1110 304 1117 223 . 1359 12 . . 23 . . . . . 17 9 . . . . . . 161 . . . . . . 1462 Cannons 12346 | . . . . . 142 . 86 . 459 . 170 39 39 264 . . . . . . . . . . . . . 2060 . 623 917 2963 357 1510 2717 Explosions 13616 | . . 141 165 795 889 . 1289 . 553 . 745 18 317 1231 . . . . . . . . . . . . . 1623 . . 1081 . . 962 3807 Melee 25400 | . . . . . . . 250 . . . 179 . 106 141 471 700 152 1242 . . . . . . . . 646 120 . 491 2740 8342 . 3076 6744 Ramming 350 | 7 2 31 24 41 21 13 32 . . . . . . . . . . . . . . . . . . . . . . 101 . 37 18 . 23 Kinetic 11093 | 39 72 195 707 285 1110 304 1117 223 . 1359 12 . . 23 . . . . . . . . . . . . . 161 . . . 2963 357 . 2166 Thermal 13834 | 88 . . . . 536 . 605 . 1012 . 765 57 356 510 . . . . . 17 9 . . . . . . 2265 . 623 1184 . . 2472 3335 Explosive 5986 | . . 141 165 795 495 . 770 . . . 150 . . 985 . . . . . . . . . . . . . . . . . . . . 2485 Electromagnetic 2232 | . . . . . . . . . . . . . . . . . . . . . . . . . . . . 1418 . . 814 . . . . Impact . | . . . . . . . . . . . . . . . . . . . . . . . . . . . . . . . . . . . . Slashing 22809 | . . . . . . . 250 . . . 179 . 106 141 471 700 152 1242 . . . . . . . . . . . . 2170 7578 . 3076 6744 Piercing 2591 | . . . . . . . . . . . . . . . . . . . . . . . . . . . 646 120 . 491 570 764 . . . Highest Corruption 27 | . . . . . 3 3 . . 27 27 27 27 27 27 . . . . . . . . 1 . . . . 5 . . 3 . . . . Average Corruption 16 | . . . . . 2 3 . . 18 27 27 27 27 27 . . . . . . . . 1 . . . . 2 . . 2 . . . . Corruption Purged 15 | . . . . . . . . . . . . . . . . . . . . . . . . . . . . 8 . . 7 . . . . Effects 306 | . . . . . 25 . . . 20 113 42 21 34 32 . . . . . . . . . . . . . 8 . . 11 . . . . Message Errors 42 | . . . . . 2 . . . 4 7 9 4 5 6 . . . . . . . . . . . . . 1 . . 4 . . . . Matter Fused 44 | . . . . . 10 . . . 4 7 8 6 5 2 . . . . . . . . . . . . . 1 . . 1 . . . . Heat Flow Errors 32 | . . . . . 2 . . . 3 13 1 1 3 4 . . . . . . . . . . . . . 3 . . 2 . . . . Energy Discharges 21 | . . . . . 5 . . . 1 6 4 2 1 . . . . . . . . . . . . . . . . . 2 . . . . Data Loss (minor) 21 | . . . . . 4 . . . . 6 1 2 4 2 . . . . . . . . . . . . . 1 . . 1 . . . . Data Loss (major) 6 | . . . . . . . . . . 3 . . 2 1 . . . . . . . . . . . . . . . . . . . . . Misfires 7 | . . . . . . . . . 1 4 . . . 2 . . . . . . . . . . . . . . . . . . . . . Alerts 4 | . . . . . . . . . . 1 1 . . 2 . . . . . . . . . . . . . . . . . . . . . Misdirections 42 | . . . . . . . . . 3 13 5 6 9 6 . . . . . . . . . . . . . . . . . . . . . Targeting Errors 73 | . . . . . 2 . . . 3 45 11 . 3 7 . . . . . . . . . . . . . 1 . . 1 . . . . Weapon Failures 14 | . . . . . . . . . 1 8 2 . 2 . . . . . . . . . . . . . . 1 . . . . . . . Overload Shots 6 | . . . . . . . . . . . . . . . . . . . . . . . . . . . . 6 . . . . . . . Overflow Damage 5166 | . . 27 . 41 8 . 194 . . . 1 . . 218 115 293 . 479 . . . . . . . . 28 103 . 171 102 1168 . 1048 1170 Projectiles 901 | . . . . . . . . . . . . . . 16 . . . . . . . . . . . . . 93 . 24 56 367 . 180 165 Explosions 875 | . . 27 . 41 8 . 52 . . . 1 . . 199 . . . . . . . . . . . . . 10 . . . . . 341 196 Melee 3390 | . . . . . . . 142 . . . . . . 3 115 293 . 479 . . . . . . . . 28 . . 147 46 801 . 527 809 Knockbacks 38 | 1 . . . 1 . . . . . . . . . . . . . . . . . . . . . . . . . 1 . 29 2 . 4 Impact 4 | 1 . . . 1 . . . . . . . . . . . . . . . . . . . . . . . . . 1 . 1 . . . Kinetic 33 | . . . . . . . . . . . . . . . . . . . . . . . . . . . . . . . . 27 2 . 4 Secondary 1 | . . . . . . . . . . . . . . . . . . . . . . . . . . . . . . . . 1 . . . Self-Inflicted Damage 1267 | . . . . 8 . 6 61 . . . 202 9 . 455 . . . . . . . . . . . . . 191 . . 148 . . 26 161 Shots 61 | . . . . 2 . . 3 . . . 4 1 . 15 . . . . . . . . . . . . . 16 . . 16 . . 1 3 Rammed 44 | 1 2 8 5 11 3 2 3 . . . . . . . . . . . . . . . . . . . . . . 6 . 1 1 . 1 Targets Rammed 52 | 1 2 10 7 11 3 2 5 . . . . . . . . . . . . . . . . . . . . . . 8 . 1 1 . 1 Kicked . | . . . . . . . . . . . . . . . . . . . . . . . . . . . . . . . . . . . . Crushed 8 | . . 2 2 . . . 2 . . . . . . . . . . . . . . . . . . . . . . 2 . . . . . Highest Temperature 406 | 40 124 . 148 106 323 209 310 84 342 274 406 176 352 226 . . . . . . . . 4 . . . 6 315 199 195 287 . . 108 182 Average Temperature 86 | 18 56 . 34 48 131 141 76 34 114 100 155 92 147 107 . . . . . . . . 4 . . . 6 98 86 87 75 . . 58 66 Received Heat Transfer 1770 | . 12 36 99 137 . 72 171 12 . 144 96 . 30 12 . . . . 24 9 . 18 . . . . 18 99 . 30 378 40 . 64 269 Effects 4 | . . . . . . . . . . 1 1 . . 1 . . . . . . . . . . . . . 1 . . . . . . . Energy Bleed 2 | . . . . . . . . . . . 1 . . 1 . . . . . . . . . . . . . . . . . . . . . Interference 1 | . . . . . . . . . . 1 . . . . . . . . . . . . . . . . . . . . . . . . . Damage (minor) 1 | . . . . . . . . . . . . . . . . . . . . . . . . . . . . 1 . . . . . . . Siege Activations 55 | . . . . . . . . . . 3 2 . 1 5 . . . . . . . . . . . . . 8 1 1 6 11 2 6 9 Total Turns 1587 | . . . . . . . . . . 43 17 . 13 56 . . . . . . . . . . . . . 214 17 6 179 322 10 120 590 Longest Duration 367 | . . . . . . . . . . 27 9 . 13 25 . . . . . . . . . . . . . 78 17 6 88 66 5 45 367 Robots Corrupted 11 | . . . . . . . . . . . . . . . . . . . . . . . . . . . . 5 . . 6 . . . . Combat Hostiles 11 | . . . . . . . . . . . . . . . . . . . . . . . . . . . . 5 . . 6 . . . . Parts Fried 31 | . . . . . . . . . . . . . . . . . . . . . . . . . . . . 11 . 1 18 . . . 1 Impact Corruptions 2 | . . . . . . . . . . . . . . . . . . . . . . . . . . . . . . 1 . 1 . . . Robots Melted 22 | . . . . . 1 . 2 . 6 . 2 . 4 1 . . . . . . . . . . . . . . . . 4 . . 1 1 Combat Hostiles 21 | . . . . . . . 2 . 6 . 2 . 4 1 . . . . . . . . . . . . . . . . 4 . . 1 1 Parts Melted 122 | . . . . . 31 . 7 . 18 . 22 2 14 15 . . . . . . . . . . . . . 4 . . 5 . . 3 1 Heat Transferred 25952 | 259 . . . . 3120 . 3040 . 4800 . 3600 240 2560 2160 . . . . . 74 37 . . . . . . 1943 . 555 779 . . 1620 1165 Parts Sabotaged . | . . . . . . . . . . . . . . . . . . . . . . . . . . . . . . . . . . . . Parts Stolen 7 | . . . . . . . . . . . . . . 7 . . . . . . . . . . . . . . . . . . . . . Parts Stripped . | . . . . . . . . . . . . . . . . . . . . . . . . . . . . . . . . . . . . Power Chain Reactions 7 | . . . . . . . . . . . . . . . . . . . . . . . . . . . . 5 . . 2 . . . . Missiles Intercepted . | . . . . . . . . . . . . . . . . . . . . . . . . . . . . . . . . . . . . Alert | -11 -10 -10 -9 -9 -9 -8 -8 -7 -7 -7 -7 -7 -7 -6 -6 -6 -6 -6 -6 -5 -5 -5 -5 -4 -4 -4 -4 -4 -4 -3 -3 -3 -2 -1 -1 ------- Run | Scr Mat Min Mat Min Exi Min Mat Fac Was Fac Low Low Dat Pro Fac Ext Cet Arc Hub Fac Upp Upp War Pro Fac Was Fac Arm Lab Res Qua Sec Res Acc Com Peak Influence 919 | 20 108 270 296 170 . 28 580 184 64 209 . . . . 488 271 418 317 264 230 . . . . 52 33 45 692 . 322 345 345 312 790 919 Initial 224 | . 13 42 33 115 . . 10 123 64 44 . . . . 37 3 43 167 110 119 . . . . . 18 23 17 . . . . 126 44 224 Average 212 | 13 23 86 148 62 . 17 279 154 64 95 . . . . 301 73 174 277 180 163 . . . . 26 19 14 331 . 41 121 159 153 470 594 Maximum Alert Level 3 | . . 1 1 . . . 2 . . 1 . . . . 2 1 2 1 1 1 . . . . . . . 2 . 1 1 1 1 3 3 Low Security (%) 62 | 100 100 87 58 100 . 100 27 100 100 93 . . . . 37 98 58 17 65 89 . . . . 100 100 100 33 . 95 88 56 84 12 . Level 1 16 | . . 12 41 . . . 39 . . 6 . . . . . 1 30 82 34 10 . . . . . . . 34 . 4 11 43 15 19 4 Level 2 18 | . . . . . . . 32 . . . . . . . 62 . 10 . . . . . . . . . . 32 . . . . . 52 85 Level 3 1 | . . . . . . . . . . . . . . . . . . . . . . . . . . . . . . . . . . 15 9 Level 4 . | . . . . . . . . . . . . . . . . . . . . . . . . . . . . . . . . . . . . Level 5 . | . . . . . . . . . . . . . . . . . . . . . . . . . . . . . . . . . . . . High Security . | . . . . . . . . . . . . . . . . . . . . . . . . . . . . . . . . . . . . Max Security . | . . . . . . . . . . . . . . . . . . . . . . . . . . . . . . . . . . . . Squads Dispatched 53 | . 1 . 1 . . 1 3 . . 1 . . . . . 2 . . 4 . . . . . . . 1 2 . 4 5 10 3 12 3 Investigation 9 | . 1 . 1 . . . 2 . . . . . . . . . . . 3 . . . . . . . . . . 1 . . . 1 . Extermination 13 | . . . . . . . . . . 1 . . . . . . . . . . . . . . . . . 2 . . . 6 . 2 2 Reinforcement 15 | . . . . . . 1 1 . . . . . . . . 2 . . 1 . . . . . . . 1 . . 3 1 2 2 1 . Assault 3 | . . . . . . . . . . . . . . . . . . . . . . . . . . . . . . . . . . 2 1 Garrison 3 | . . . . . . . . . . . . . . . . . . . . . . . . . . . . . . . . . . 3 . Intercept 10 | . . . . . . . . . . . . . . . . . . . . . . . . . . . . . . . 4 2 1 3 . Construction Impeded 4 | . . . . . . 1 . . . . . . . . . 1 . . . . . . . . . . . . . . . 1 . 1 . Haulers Reinforced 3 | . . . . . . . . . . . . . . . . . . . . . . . . . . . 1 . . 1 . . 1 . . Stealth | -11 -10 -10 -9 -9 -9 -8 -8 -7 -7 -7 -7 -7 -7 -6 -6 -6 -6 -6 -6 -5 -5 -5 -5 -4 -4 -4 -4 -4 -4 -3 -3 -3 -2 -1 -1 --------- Run | Scr Mat Min Mat Min Exi Min Mat Fac Was Fac Low Low Dat Pro Fac Ext Cet Arc Hub Fac Upp Upp War Pro Fac Was Fac Arm Lab Res Qua Sec Res Acc Com Distress Signals 49 | . 2 . 2 1 . 1 1 1 . . . . . . 1 2 2 1 2 . . . 1 . . . . 2 . 10 . 2 9 2 7 Communications Jammed 7 | . . . . . . . . . . . . . . . . . . . . . . . . . . . . . . . . . . . 7 Distress Signals 7 | . . . . . . . . . . . . . . . . . . . . . . . . . . . . . . . . . . . 7 Times Spotted 497 | . 8 14 23 18 33 6 32 3 5 11 9 1 4 11 3 19 18 8 13 4 2 3 26 4 3 2 10 41 . 11 12 38 7 23 72 Peak Tracking Total 20 | . 7 3 5 5 9 5 9 2 2 3 4 1 4 2 2 5 6 . 11 3 4 3 11 5 2 2 8 6 . 5 6 5 3 5 20 Tactical Retreats 39 | . . 2 2 . 6 . 2 . . 1 . . . . 1 3 2 . 1 . 1 2 1 1 . . . 1 . 1 . 8 . 1 3 Traps | -11 -10 -10 -9 -9 -9 -8 -8 -7 -7 -7 -7 -7 -7 -6 -6 -6 -6 -6 -6 -5 -5 -5 -5 -4 -4 -4 -4 -4 -4 -3 -3 -3 -2 -1 -1 ------- Run | Scr Mat Min Mat Min Exi Min Mat Fac Was Fac Low Low Dat Pro Fac Ext Cet Arc Hub Fac Upp Upp War Pro Fac Was Fac Arm Lab Res Qua Sec Res Acc Com Traps Triggered 15 | . . . . . . . 1 1 . . . . . . 2 1 . . . . . . . . 1 . . 2 . . 5 . . 1 1 Indirectly 5 | . . . . . . . . . . . . . . . . . . . . . . . . . . . . 1 . . 4 . . . . Trap Hack Attempts . | . . . . . . . . . . . . . . . . . . . . . . . . . . . . . . . . . . . . Triggered . | . . . . . . . . . . . . . . . . . . . . . . . . . . . . . . . . . . . . Disarmed . | . . . . . . . . . . . . . . . . . . . . . . . . . . . . . . . . . . . . Reprogrammed . | . . . . . . . . . . . . . . . . . . . . . . . . . . . . . . . . . . . . Reused . | . . . . . . . . . . . . . . . . . . . . . . . . . . . . . . . . . . . . Traps Extracted . | . . . . . . . . . . . . . . . . . . . . . . . . . . . . . . . . . . . . Installed 5 | . . 5 . . . . . . . . . . . . . . . . . . . . . . . . . . . . . . . . . Triggered 11 | . . . . . . . . . . . . . . . . . . . . . 3 . 8 . . . . . . . . . . . . Exploded 2 | . . . . . 2 . . . . . . . . . . . . . . . . . . . . . . . . . . . . . . Machines | -11 -10 -10 -9 -9 -9 -8 -8 -7 -7 -7 -7 -7 -7 -6 -6 -6 -6 -6 -6 -5 -5 -5 -5 -4 -4 -4 -4 -4 -4 -3 -3 -3 -2 -1 -1 ---------- Run | Scr Mat Min Mat Min Exi Min Mat Fac Was Fac Low Low Dat Pro Fac Ext Cet Arc Hub Fac Upp Upp War Pro Fac Was Fac Arm Lab Res Qua Sec Res Acc Com Machines Disabled 79 | . . . . 1 13 . 8 . . 2 . . . . . 3 . . 3 1 . . . . . . . 8 2 5 10 17 1 2 3 Max in Single Turn 3 | . . . . 1 2 . 3 . . 1 . . . . . . . . 1 . . . . . . . . 1 1 3 1 1 1 1 1 Garrison Access 2 | . . . . . . . . . . . . . . . . . . . . . . . . . . . . . . 1 . . 1 . . Network Hub 1 | . . . . . . . . . . . . . . . . . . . 1 . . . . . . . . . . . . . . . . Machines Sabotaged 1 | . . . . . . . . . . . . . . . . . . . 1 . . . . . . . . . . . . . . . . Garrisons Compromised . | . . . . . . . . . . . . . . . . . . . . . . . . . . . . . . . . . . . . Overloaded Fab Kills . | . . . . . . . . . . . . . . . . . . . . . . . . . . . . . . . . . . . . Fab Network Shutdowns 1 | . . . . . . . . . . . . . . . 1 . . . . . . . . . . . . . . . . . . . . Hacking | -11 -10 -10 -9 -9 -9 -8 -8 -7 -7 -7 -7 -7 -7 -6 -6 -6 -6 -6 -6 -5 -5 -5 -5 -4 -4 -4 -4 -4 -4 -3 -3 -3 -2 -1 -1 --------- Run | Scr Mat Min Mat Min Exi Min Mat Fac Was Fac Low Low Dat Pro Fac Ext Cet Arc Hub Fac Upp Upp War Pro Fac Was Fac Arm Lab Res Qua Sec Res Acc Com Machines Accessed 114 | . 3 . 3 . 2 . 9 1 . 7 . . 4 1 4 13 4 . 2 3 3 . 6 . 2 . 3 7 . 3 10 11 1 4 8 Terminals 76 | . 2 . 2 . . . 7 . . 4 . . . 1 2 11 4 . 2 2 . . . . 1 . 2 5 . 3 7 9 . 4 8 Fabricators 5 | . . . . . . . . . . 2 . . . . 1 . . . . . . . . . . . . 2 . . . . . . . Repair Stations 4 | . . . . . . . . . . . . . . . 1 1 . . . 1 . . . . . . . . . . 1 . . . . Recycling Units 7 | . 1 . 1 . . . 2 . . . . . . . . 1 . . . . . . . . 1 . . . . . . . 1 . . Scanalyzers 7 | . . . . . . . . 1 . 1 . . . . . . . . . . . . . . . . 1 . . . 2 2 . . . Garrison Access . | . . . . . . . . . . . . . . . . . . . . . . . . . . . . . . . . . . . . Total Hacks 461 | . 6 . 9 . 2 . 21 2 . 18 . . 25 2 32 53 22 . 6 11 7 . 15 . 19 . 21 40 . 19 44 51 2 13 21 Successful 274 | . 4 . 1 . 2 . 10 1 . 10 . . 25 . 15 42 12 . 5 8 7 . 15 . 8 . 17 20 . 5 19 34 1 5 8 Failed 187 | . 2 . 8 . . . 11 1 . 8 . . . 2 17 11 10 . 1 3 . . . . 11 . 4 20 . 14 25 17 1 8 13 Catastrophic 27 | . 1 . 1 . . . . 1 . 2 . . . 1 1 2 1 . . . . . . . . . . 4 . 5 1 . . 2 5 Database Lockouts . | . . . . . . . . . . . . . . . . . . . . . . . . . . . . . . . . . . . . Manual 230 | . 3 . 8 . 1 . 11 . . 8 . . . 2 23 36 22 . 6 7 . . 1 . 3 . 2 10 . 3 18 42 . 7 17 Terminals 346 | . 4 . 8 . . . 18 . . 9 . . . 2 26 50 22 . 6 10 . . . . 13 . 13 32 . 19 33 47 . 13 21 Fabricators 18 | . . . . . . . . . . 5 . . . . 5 . . . . . . . . . . . . 8 . . . . . . . Repair Stations 5 | . . . . . . . . . . . . . . . 1 2 . . . 1 . . . . . . . . . . 1 . . . . Recycling Units 15 | . 2 . 1 . . . 3 . . . . . . . . 1 . . . . . . . . 6 . . . . . . . 2 . . Scanalyzers 28 | . . . . . . . . 2 . 4 . . . . . . . . . . . . . . . . 8 . . . 10 4 . . . Garrison Access . | . . . . . . . . . . . . . . . . . . . . . . . . . . . . . . . . . . . . Terminal Hacks 178 | . 1 . . . 2 . 6 . . 3 . . 25 . 10 30 9 . . 5 7 . 15 . 4 . 10 11 . 3 7 23 . 5 2 Record 26 | . . . . . 1 . . . . . . . 11 . . . . . . . 5 . 9 . . . . . . . . . . . . Part Schematic 26 | . . . . . . . . . . . . . 6 . 2 6 . . . 2 . . . . 1 . 3 . . 1 3 2 . . . Robot Schematic 8 | . . . . . . . 1 . . . . . 5 . . . 1 . . . . . . . . . . 1 . . . . . . . Prototype ID Bank 13 | . . . . . . . . . . . . . 3 . . 1 . . . . . . 4 . 1 . 1 . . . 2 1 . . . Open Door 14 | . . . . . . . . . . . . . . . . 5 1 . . . 2 . 2 . . . . . . . . 2 . 2 . Level Access Points 2 | . . . . . . . . . . . . . . . . . . . . . . . . . . . . 1 . . . 1 . . . Branch Access Points 3 | . . . . . . . . . . 1 . . . . . . . . . 1 . . . . 1 . . . . . . . . . . Emergency Access Points 1 | . . . . . . . . . . . . . . . . . . . . . . . . . . . . 1 . . . . . . . Terminal Index 2 | . . . . . . . 1 . . 1 . . . . . . . . . . . . . . . . . . . . . . . . . Alert Level 13 | . . . . . . . . . . . . . . . 1 3 . . . . . . . . 1 . . 2 . . 1 4 . 1 . Unreport Threat 24 | . . . . . . . 2 . . . . . . . 5 2 4 . . . . . . . . . 1 2 . 1 . 4 . 2 1 Locate Traps 7 | . . . . . . . . . . 1 . . . . 1 1 . . . . . . . . . . 2 1 . . 1 . . . . Dispatch Records 6 | . . . . . . . . . . . . . . . . 3 2 . . . . . . . . . . . . . . 1 . . . Patrol Status 6 | . . . . . . . . . . . . . . . . 1 1 . . . . . . . . . . 1 . . . 3 . . . Transport Status 1 | . . . . . . . 1 . . . . . . . . . . . . . . . . . . . . . . . . . . . . Recall Investigation 1 | . . . . . . . . . . . . . . . . . . . . . . . . . . . . . . . . 1 . . . Recall Reinforcements 3 | . . . . . . . . . . . . . . . . 2 . . . . . . . . . . . . . . . 1 . . . Hauler Manifests 9 | . . . . . . . 1 . . . . . . . . 5 . . . 1 . . . . . . 1 . . . . 1 . . . Registered Components 2 | . . . . . . . . . . . . . . . 1 . . . . . . . . . . . 1 . . . . . . . . Registered Prototypes 1 | . . . . . . . . . . . . . . . . . . . . . . . . . . . 1 . . . . . . . . Zone Layout 8 | . 1 . . . . . . . . . . . . . . 1 . . . 1 . . . . . . . 2 . 1 . 2 . . . EX-Prototype ID Bank 1 | . . . . . 1 . . . . . . . . . . . . . . . . . . . . . . . . . . . . . . Disengage Seal 1 | . . . . . . . . . . . . . . . . . . . . . . . . . . . . . . . . . . . 1 Fabricator Hacks 7 | . . . . . . . . . . 2 . . . . 2 . . . . . . . . . . . . 3 . . . . . . . Load Schematic 3 | . . . . . . . . . . 1 . . . . 1 . . . . . . . . . . . . 1 . . . . . . . Build 4 | . . . . . . . . . . 1 . . . . 1 . . . . . . . . . . . . 2 . . . . . . . Repair Station Hacks 5 | . . . . . . . . . . . . . . . 1 2 . . . 1 . . . . . . . . . . 1 . . . . Scan Component 2 | . . . . . . . . . . . . . . . . 1 . . . . . . . . . . . . . . 1 . . . . Repair 1 | . . . . . . . . . . . . . . . . 1 . . . . . . . . . . . . . . . . . . . Refit 2 | . . . . . . . . . . . . . . . 1 . . . . 1 . . . . . . . . . . . . . . . Recycling Unit Hacks 6 | . 1 . 1 . . . . . . . . . . . . 1 . . . . . . . . 2 . . . . . . . 1 . . Report Inventory 3 | . . . 1 . . . . . . . . . . . . 1 . . . . . . . . 1 . . . . . . . . . . Retrieve Components 3 | . 1 . . . . . . . . . . . . . . . . . . . . . . . 1 . . . . . . . 1 . . Scanalyzer 20 | . . . . . . . . 1 . 3 . . . . . . . . . . . . . . . . 7 . . . 7 2 . . . Insert Component 12 | . . . . . . . . 1 . 1 . . . . . . . . . . . . . . . . 2 . . . 6 2 . . . Analyze 8 | . . . . . . . . . . 2 . . . . . . . . . . . . . . . . 5 . . . 1 . . . . Garrison Access Hacks . | . . . . . . . . . . . . . . . . . . . . . . . . . . . . . . . . . . . . Unauthorized Hacks 58 | . 2 . . . . . 4 . . 2 . . . . 2 9 3 . 5 2 . . . . 2 . . 6 . 2 4 9 . . 6 Terminals 50 | . 1 . . . . . 2 . . 1 . . . . 1 9 3 . 5 2 . . . . 2 . . 4 . 2 4 8 . . 6 Track 14 | . 1 . . . . . 1 . . . . . . . . 3 1 . . . . . . . . . . 3 . 2 . 3 . . . Assimilate 5 | . . . . . . . . . . . . . . . . . . . 1 1 . . . . 1 . . . . . . 1 . . 1 Botnet 18 | . . . . . . . . . . 1 . . . . 1 3 2 . 1 1 . . . . 1 . . 1 . . 2 1 . . 4 Detonate 2 | . . . . . . . . . . . . . . . . . . . 1 . . . . . . . . . . . . 1 . . . Disrupt 6 | . . . . . . . . . . . . . . . . 3 . . . . . . . . . . . . . . 1 2 . . . Operators 3 | . . . . . . . 1 . . . . . . . . . . . . . . . . . . . . . . . 1 . . . 1 Sabotage 2 | . . . . . . . . . . . . . . . . . . . 2 . . . . . . . . . . . . . . . . Fabricators 4 | . . . . . . . . . . 1 . . . . 1 . . . . . . . . . . . . 2 . . . . . . . Prioritize 3 | . . . . . . . . . . 1 . . . . 1 . . . . . . . . . . . . 1 . . . . . . . Siphon 1 | . . . . . . . . . . . . . . . . . . . . . . . . . . . . 1 . . . . . . . Repair Stations . | . . . . . . . . . . . . . . . . . . . . . . . . . . . . . . . . . . . . Recycling Units 3 | . 1 . . . . . 2 . . . . . . . . . . . . . . . . . . . . . . . . . . . . Tunnel 3 | . 1 . . . . . 2 . . . . . . . . . . . . . . . . . . . . . . . . . . . . Scanalyzers 1 | . . . . . . . . . . . . . . . . . . . . . . . . . . . . . . . . 1 . . . Researchers 1 | . . . . . . . . . . . . . . . . . . . . . . . . . . . . . . . . 1 . . . Garrison Access . | . . . . . . . . . . . . . . . . . . . . . . . . . . . . . . . . . . . . Data Cores Recovered . | . . . . . . . . . . . . . . . . . . . . . . . . . . . . . . . . . . . . Used . | . . . . . . . . . . . . . . . . . . . . . . . . . . . . . . . . . . . . Hacking Detections 76 | . 2 . 2 . . . 6 1 . 7 . . . 1 3 9 3 . 1 1 . . . . 2 . 2 5 . 3 9 9 1 4 5 Full Trace Events 3 | . . . 2 . . . . . . . . . . . . . . . . . . . . . . . . . . . . . . 1 . Feedback Events . | . . . . . . . . . . . . . . . . . . . . . . . . . . . . . . . . . . . . Feedback Blocked . | . . . . . . . . . . . . . . . . . . . . . . . . . . . . . . . . . . . . Robot Schematics Acquired 8 | . . . . . . . 1 . . . . . 5 . . . 1 . . . . . . . . . . 1 . . . . . . . Robots Built 1 | . . . . . . . . . . 1 . . . . . . . . . . . . . . . . . . . . . . . . . Matter 153 | . . . . . . . . . . 153 . . . . . . . . . . . . . . . . . . . . . . . . . Time 81 | . . . . . . . . . . 81 . . . . . . . . . . . . . . . . . . . . . . . . . Total Robot Build Rating 1 | . . . . . . . . . . 1 . . . . . . . . . . . . . . . . . . . . . . . . . Part Schematics Acquired 30 | . . . . . . . . . . 1 . . 6 . 2 6 . . . 2 . . . . 1 . 5 . . 1 4 2 . . . Parts Built 5 | . . . . . . . . . . . . . . . 1 . . . . . . . . . . . . 4 . . . . . . . Matter 734 | . . . . . . . . . . . . . . . 318 . . . . . . . . . . . . 416 . . . . . . . Time 272 | . . . . . . . . . . . . . . . 169 . . . . . . . . . . . . 103 . . . . . . . Total Part Build Rating 42 | . . . . . . . . . . . . . . . 6 . . . . . . . . . . . . 36 . . . . . . . Parts Repaired 1 | . . . . . . . . . . . . . . . . 1 . . . . . . . . . . . . . . . . . . . Time 80 | . . . . . . . . . . . . . . . . 80 . . . . . . . . . . . . . . . . . . . Parts Recycled . | . . . . . . . . . . . . . . . . . . . . . . . . . . . . . . . . . . . . Recycled Matter . | . . . . . . . . . . . . . . . . . . . . . . . . . . . . . . . . . . . . Retrieved Matter . | . . . . . . . . . . . . . . . . . . . . . . . . . . . . . . . . . . . . Retrieved Components 8 | . 4 . . . . . . . . . . . . . . . . . . . . . . . 2 . . . . . . . 2 . . Parts Scanalyzed 5 | . . . . . . . . 1 . 1 . . . . . . . . . . . . . . . . 2 . . . 1 . . . . Part Schematics Acquired 4 | . . . . . . . . . . 1 . . . . . . . . . . . . . . . . 2 . . . 1 . . . . Parts Damaged . | . . . . . . . . . . . . . . . . . . . . . . . . . . . . . . . . . . . . Bothacking | -11 -10 -10 -9 -9 -9 -8 -8 -7 -7 -7 -7 -7 -7 -6 -6 -6 -6 -6 -6 -5 -5 -5 -5 -4 -4 -4 -4 -4 -4 -3 -3 -3 -2 -1 -1 ------------ Run | Scr Mat Min Mat Min Exi Min Mat Fac Was Fac Low Low Dat Pro Fac Ext Cet Arc Hub Fac Upp Upp War Pro Fac Was Fac Arm Lab Res Qua Sec Res Acc Com Used RIF Installer . | . . . . . . . . . . . . . . . . . . . . . . . . . . . . . . . . . . . . Robots Hacked . | . . . . . . . . . . . . . . . . . . . . . . . . . . . . . . . . . . . . Non-combat . | . . . . . . . . . . . . . . . . . . . . . . . . . . . . . . . . . . . . Combat . | . . . . . . . . . . . . . . . . . . . . . . . . . . . . . . . . . . . . Robot Hacks Applied . | . . . . . . . . . . . . . . . . . . . . . . . . . . . . . . . . . . . . Relay Couplers Released 5 | . . . . . . . . . . . . . . . . . . . . . . . . . . . . . . 2 . . 3 . . Machine Destruction 5 | . . . . . . . . . . . . . . . . . . . . . . . . . . . . . . 2 . . 3 . . Robots Rewired 14 | . . . . . . . . . . . . . . . 1 9 . . . 1 . . . . . . . 3 . . . . . . . Allies Hacked . | . . . . . . . . . . . . . . . . . . . . . . . . . . . . . . . . . . . . Hacks Repelled . | . . . . . . . . . . . . . . . . . . . . . . . . . . . . . . . . . . . . Allies | -11 -10 -10 -9 -9 -9 -8 -8 -7 -7 -7 -7 -7 -7 -6 -6 -6 -6 -6 -6 -5 -5 -5 -5 -4 -4 -4 -4 -4 -4 -3 -3 -3 -2 -1 -1 -------- Run | Scr Mat Min Mat Min Exi Min Mat Fac Was Fac Low Low Dat Pro Fac Ext Cet Arc Hub Fac Upp Upp War Pro Fac Was Fac Arm Lab Res Qua Sec Res Acc Com Total Allies 34 | . . 2 . 3 . . . . . 1 . . . . 1 15 5 . 1 2 . . . . 1 . . 3 . . . . . . . Largest Group 7 | . . 2 . 2 . . . . . 1 . . . . 1 7 7 2 2 1 . . . . 1 1 . 3 . . . . . . . Highest-Rated Group 619 | . . 41 . 32 . . . . . 10 . . . . 30 325 619 181 181 49 . . . . 26 26 . 144 . . . . . . . Highest-Rated Ally 156 | . . 31 . 16 . . . . . 10 . . . . 30 156 156 94 94 49 . . . . 26 26 . 48 . . . . . . . Total Orders 61 | . . . . . . . . . . 6 . . . . . 23 24 2 2 . . . . . . . . 4 . . . . . . . STAY 9 | . . . . . . . . . . 3 . . . . . . 3 . 1 . . . . . . . . 2 . . . . . . . ROAM 10 | . . . . . . . . . . . . . . . . 3 6 1 . . . . . . . . . . . . . . . . . FOLLOW 17 | . . . . . . . . . . 3 . . . . . 4 6 1 1 . . . . . . . . 2 . . . . . . . RETURN 25 | . . . . . . . . . . . . . . . . 16 9 . . . . . . . . . . . . . . . . . . Ally Attacks 447 | . . 8 . 4 . . . . . . . . . . . 209 170 33 4 6 . . . . . . . 13 . . . . . . . Total Damage 11332 | . . 126 . 61 . . . . . . . . . . . 4354 4920 1067 40 295 . . . . . . . 469 . . . . . . . Kills 64 | . . 4 . . . . . . . . . . . . . 23 24 4 1 4 . . . . . . . 4 . . . . . . . Allies Corrupted 3 | . . . . . . . . . . . . . . . . 3 . . . . . . . . . . . . . . . . . . . Allies Melted 1 | . . . . . . . . . . . . . . . . . . . . 1 . . . . . . . . . . . . . . . Intel | -11 -10 -10 -9 -9 -9 -8 -8 -7 -7 -7 -7 -7 -7 -6 -6 -6 -6 -6 -6 -5 -5 -5 -5 -4 -4 -4 -4 -4 -4 -3 -3 -3 -2 -1 -1 ------- Run | Scr Mat Min Mat Min Exi Min Mat Fac Was Fac Low Low Dat Pro Fac Ext Cet Arc Hub Fac Upp Upp War Pro Fac Was Fac Arm Lab Res Qua Sec Res Acc Com Robot Analysis Total 115 | . . . . . . . . . . . . . 115 . . . . . . . . . . . . . . . . . . . . . . Derelict Logs Recovered 5 | . . 2 . . . . . . . . 1 . . . . . . . . . 1 1 . . . . . . . . . . . . . Drone Launches 26 | . . . . . . . . . . . . . . . . 19 6 1 . . . . . . . . . . . . . . . . . Drone Recoveries 24 | . . . . . . . . . . . . . . . . 18 6 . . . . . . . . . . . . . . . . . . Exploration | -11 -10 -10 -9 -9 -9 -8 -8 -7 -7 -7 -7 -7 -7 -6 -6 -6 -6 -6 -6 -5 -5 -5 -5 -4 -4 -4 -4 -4 -4 -3 -3 -3 -2 -1 -1 ------------- Run | Scr Mat Min Mat Min Exi Min Mat Fac Was Fac Low Low Dat Pro Fac Ext Cet Arc Hub Fac Upp Upp War Pro Fac Was Fac Arm Lab Res Qua Sec Res Acc Com Turns Passed 25648 | 172 370 1189 635 972 1795 18 1300 341 369 972 495 384 407 363 266 1415 378 144 116 176 203 147 1033 84 53 16 124 1124 337 1151 2452 2218 906 807 2716 Spaces Moved 14782 | 83 167 688 289 532 920 7 520 193 191 552 191 210 200 271 395 1026 416 105 233 325 290 334 1193 219 128 59 207 472 181 568 961 817 522 339 978 Core 44 | 6 . . . . . . . . . . . . . 1 . 33 4 . . . . . . . . . . . . . . . . . . Treads 8048 | 77 167 688 289 532 691 . 264 22 . 7 155 210 200 76 . . . . . . . . . . . . . 304 181 568 961 817 522 339 978 Legs 495 | . . . . . 229 7 256 . . . . . . . . 1 2 . . . . . . . . . . . . . . . . . . Wheels 943 | . . . . . . . . 171 191 545 36 . . . . . . . . . . . . . . . . . . . . . . . . Hover 33 | . . . . . . . . . . . . . . . . . . . . 33 . . . . . . . . . . . . . . . Flight 5219 | . . . . . . . . . . . . . . 194 395 992 410 105 233 292 290 334 1193 219 128 59 207 168 . . . . . . . Fastest Speed 26 | 50 160 160 160 160 150 160 160 130 140 140 140 180 180 37 37 37 37 47 37 37 37 37 26 26 26 27 27 27 160 160 148 148 150 150 150 Average Speed 116 | 152 160 160 163 160 169 160 183 139 147 140 172 180 180 84 37 57 43 47 40 42 37 37 31 26 26 27 27 114 160 160 155 159 153 152 153 Slowest Speed 1850 | 160 160 160 180 160 180 160 210 210 160 180 180 180 180 1850 37 300 130 47 47 80 37 37 101 26 27 27 27 160 160 160 240 178 158 170 170 Overloaded Moves . | . . . . . . . . . . . . . . . . . . . . . . . . . . . . . . . . . . . . Propulsion Burnouts . | . . . . . . . . . . . . . . . . . . . . . . . . . . . . . . . . . . . . Robots Hopped 35 | . . . . . . . . . . . . . . . 5 9 7 . 7 3 1 . 2 . . . 1 . . . . . . . . Cave-ins Triggered 7 | . . . . . 1 . . . . . . . . . . . . . . . . . . . . . . . . . . 6 . . . Teleports 1 | . . . . . . . . . . . . . . . . . . . . . . . . . . . . . . . . 1 . . . Exploration Rate (%) 47 | 4 30 101 32 99 91 5 52 7 77 16 51 45 77 46 9 86 84 79 24 5 45 61 92 48 5 70 10 56 100 8 76 52 24 14 33 Regions Visited 35 Branch Regions 21 Pre-discovered Areas 32 | . 1 1 . . 1 . 2 . . . 1 . 25 . . . . . . . 1 . . . . . . . . . . . . . . Known Exits Taken 15 | . . . . . . 1 . . . 1 . . . . . 1 1 1 1 1 1 1 1 1 . . 1 . 1 . 1 1 . . . Unknown Exits Taken 16 | 1 1 1 1 1 1 . 1 . . . 1 1 1 1 1 . . . . . . . . . . . . 1 . 1 . . 1 1 . Scrap Searched 10 | . . 1 . 2 . . . . . . 2 . . 3 . . . . . . . 1 . 1 . . . . . . . . . . . Spaces Dug 375 | . 9 . . 67 . . 28 3 . . 27 . . 39 2 1 . . 4 . . . 8 . 1 . . 14 . 8 12 39 8 69 36 Terrain Destroyed 1276 | . 10 17 10 174 48 3 105 3 . . 139 . . 187 2 1 . . 4 . . . 8 . 1 . . 62 . 27 43 66 19 157 190 Melee 94 | . 1 . . . . . 10 3 . . . . . . 2 1 . . 4 . . . 8 . 1 . . 7 . 3 3 20 4 12 15 Projectile 183 | . 9 . . . 13 3 2 . . . . . . . . . . . . . . . . . . . . 32 . 15 29 46 15 8 11 AOE 999 | . . 17 10 174 35 . 93 . . . 139 . . 187 . . . . . . . . . . . . . 23 . 9 11 . . 137 164 Terrain Rammed . | . . . . . . . . . . . . . . . . . . . . . . . . . . . . . . . . . . . . Walls Destroyed . | . . . . . . . . . . . . . . . . . . . . . . . . . . . . . . . . . . . . Machines Disabled . | . . . . . . . . . . . . . . . . . . . . . . . . . . . . . . . . . . . . Actions | -11 -10 -10 -9 -9 -9 -8 -8 -7 -7 -7 -7 -7 -7 -6 -6 -6 -6 -6 -6 -5 -5 -5 -5 -4 -4 -4 -4 -4 -4 -3 -3 -3 -2 -1 -1 --------- Run | Scr Mat Min Mat Min Exi Min Mat Fac Was Fac Low Low Dat Pro Fac Ext Cet Arc Hub Fac Upp Upp War Pro Fac Was Fac Arm Lab Res Qua Sec Res Acc Com Total 21342 | 110 229 739 374 596 1127 13 773 246 264 663 321 214 244 369 503 1835 609 187 241 354 381 355 1835 245 144 58 264 909 224 753 1790 1400 591 492 1890 Wait 4236 | 1 18 6 26 9 60 . 86 6 29 24 72 1 11 26 88 732 181 69 5 16 91 20 584 27 10 . 47 239 17 108 610 337 20 47 613 Move 14677 | 82 166 687 288 531 918 6 519 193 190 551 190 209 199 270 386 1007 401 104 220 318 287 333 1188 218 128 58 204 471 180 567 960 811 521 338 978 Hop 31 | . . . . . . . . . . . . . . . 3 9 7 . 5 3 1 . 2 . . . 1 . . . . . . . . Pick Up 215 | 6 8 2 8 5 25 . 25 8 7 10 . . 10 2 . 2 3 . . 1 . . 8 . . . 2 16 5 2 19 12 10 3 16 Fast Attach 128 | 6 1 2 1 1 11 . 11 1 1 1 . . 1 3 4 6 3 2 . 4 . 1 12 . 3 . . 16 3 6 13 7 4 . 4 Attach 151 | 1 4 . 3 3 8 . 12 6 6 7 6 . 3 6 . 3 . . 1 2 . . . . . . 1 8 2 2 4 12 4 14 33 Detach 98 | . 1 . . . 8 . 5 4 2 2 3 . 3 . 7 1 1 . 2 1 . . 1 . . . . 4 . 3 4 4 . 13 29 Swap 232 | 2 6 5 6 1 6 . 21 8 1 18 19 3 1 8 . 1 3 . 1 . 1 1 6 . . . 1 15 . 1 38 37 3 3 16 Drop 279 | 2 8 5 5 2 29 . 27 8 10 12 4 . 8 18 4 3 8 1 1 3 . . 20 . 2 . 2 22 7 2 31 8 9 1 17 Fire 727 | 9 14 17 30 33 58 5 49 9 18 38 25 1 7 25 . . . . . 2 1 . . . . . . 100 10 34 77 67 14 19 65 Melee 430 | . 1 . . . . . 13 3 . . 2 . 1 11 9 10 2 11 6 . . . 12 . 1 . 6 12 . 20 34 99 5 54 118 Ram . | . . . . . . . . . . . . . . . . . . . . . . . . . . . . . . . . . . . . Kick 2 | . . . . . . 2 . . . . . . . . . . . . . . . . . . . . . . . . . . . . . Crush 50 | 1 2 10 7 11 3 . 5 . . . . . . . . . . . . . . . . . . . . . . 8 . 1 1 . 1 Escape Stasis 24 | . . . . . 1 . . . . . . . . . . 18 . . . . . . . . . . . . . . . 5 . . . Rewire 57 | . . . . . . . . . . . . . . . 2 43 . . . 4 . . 2 . . . . 6 . . . . . . . Trap 5 | . . 5 . . . . . . . . . . . . . . . . . . . . . . . . . . . . . . . . . Miscellaneous . | . . . . . . . . . . . . . . . . . . . . . . . . . . . . . . . . . . . . Route ------- -11/Scrapyard -10/Materials (discovered 2 exits: [*Min x2]) -10/Mines (discovered 2 exits: *Mat x2) -9/Materials (discovered 3 exits: Mat / [*Min x2]) -9/Mines (discovered 3 exits: *Mat x2 / *Exi) -9/Exiles -8/Mines -8/Materials (discovered 2 exits: *Fac x2) -7/Factory -7/Waste -7/Factory (discovered 3 exits: *Sto / *Low x2) -7/Lower Caves -7/Lower Caves (discovered 2 exits: *Fac / *Dat) -7/Data Miner -6/Proximity Caves -6/Factory -6/Extension (discovered 2 exits: *Fac / *Cet) -6/Cetus (discovered 2 exits: *Fac / *Arc) -6/Archives (discovered 2 exits: *Fac / *Hub) -6/Hub_04(d) (discovered 2 exits: *Fac x2) -5/Factory (discovered 2 exits: *Upp x2) -5/Upper Caves -5/Upper Caves (discovered 2 exits: *Fac / *War) -5/Warlord -4/Proximity Caves -4/Factory (discovered 5 exits: Res x2 / Upp x2 / Arm) -4/Waste -4/Factory -4/Armory (discovered 3 exits: Res x2 / [*Lab]) -4/Lab -3/Research -3/Quarantine (discovered 2 exits: *Res / *Sec) -3/Section 7 -2/Research -1/Access -1/Command Free Derelict Territories History --------- Turn | Location | Event 3 | -11/Scrapyard | Discovered new exit (range 15) 173 | -11/Scrapyard | Entered Materials 318 | -10/Materials | Build established: Mutant 328 | -10/Materials | Discovered new exit (range 11) 471 | -10/Materials | Discovered new exit (range 15) 543 | -10/Materials | Entered Mines 630 | -10/Mines | Discovered new exit (range 5) 782 | -10/Mines | Learned location of 1 exit from Materials 863 | -10/Mines | Learned Materials security intel 941 | -10/Mines | Discovered new exit (range 5) 1297 | -10/Mines | Learned location of Storage (-7) 1312 | -10/Mines | Found a hidden stash of uninstalled traps 1732 | -10/Mines | Entered Materials 1732 | -9/Materials | Evolved 2 slots: Weapon x2 1733 | -9/Materials | Identified exit to Materials 1772 | -9/Materials | Discovered new exit (range 16) 2291 | -9/Materials | Discovered new exit (range 13) 2367 | -9/Materials | Entered Mines 2387 | -9/Mines | Build established: Tank 2407 | -9/Mines | Assembled infested the area 2415 | -9/Mines | Assisted by bots powering up and referring to "LRC-V3" 2436 | -9/Mines | Met a Derelict bent on vengeance 2466 | -9/Mines | Lost 3 parts (1n1u1w) 2467 | -9/Mines | Discovered exit to Materials (range 10) 2479 | -9/Mines | Found a damaged Exp. Sensor Array with a note attached 2482 | -9/Mines | Found Prototype Device 2686 | -9/Mines | Discovered exit to Materials (range 9) 3096 | -9/Mines | Build established: Scavenger-Mutant 3332 | -9/Mines | Deemed a non-threat by the Exiles lab entrance 3332 | -9/Mines | Discovered new exit (range 5) 3339 | -9/Mines | Entered Exiles 3387 | -9/Exiles | Met 8R-AWN 3415 | -9/Exiles | Met EX-HEX 3517 | -9/Exiles | Met EX-DEC 3555 | -9/Exiles | Learned location of Zion (-6) 3646 | -9/Exiles | Build established: Mutant 3699 | -9/Exiles | Met EX-BIN 3724 | -9/Exiles | Aligned with FarCom system 3726 | -9/Exiles | Given EX-Vault access code 3768 | -9/Exiles | Opened EX-Vault 3779 | -9/Exiles | Found XL Autogun Array 3785 | -9/Exiles | Found Firepult 3788 | -9/Exiles | Found Cloak of Protection 3834 | -9/Exiles | Warned to stay clear of 0b10 Research branches 3930 | -9/Exiles | Attacked by the Exiles 4031 | -9/Exiles | Crushed by falling debris 4032 | -9/Exiles | Core integrity fell below 50% 4042 | -9/Exiles | Destroyed 8R-AWN 4395 | -9/Exiles | Build established: Scavenger-Mutant 4441 | -9/Exiles | Destroyed EX-HEX 4473 | -9/Exiles | Destroyed EX-BIN 4528 | -9/Exiles | Destroyed EX-DEC 4769 | -9/Exiles | Found Prototype Device 4769 | -9/Exiles | Identified AS-neutralizer No. 17b 4956 | -9/Exiles | Identified Exp. Sensor Array 4960 | -9/Exiles | Found Deploy-a-Sentry 5117 | -9/Exiles | Discovered new exit (range 14) 5134 | -9/Exiles | Stole four prototypes: XL Autogun Array, Cloak of Protection, Firepult, Deploy-a-Sentry 5134 | -9/Exiles | Entered Mines 5134 | -8/Mines | Discovered exit to Materials (range 9) 5152 | -8/Mines | Entered Materials 5152 | -8/Materials | Evolved 2 slots: Utility x2 5646 | -8/Materials | Destroyed 10 combat bots 5991 | -8/Materials | Discovered new exit (range 9) 6009 | -8/Materials | Build established: Hauler-Tank 6380 | -8/Materials | Discovered new exit (range 16) 6452 | -8/Materials | Entered Factory 6452 | -7/Factory | Evolved 2 slots: Utility x2 6793 | -7/Factory | Sucked down chute 6793 | -7/Factory | Entered Waste 6808 | -7/Waste | EMP discharged 6868 | -7/Waste | Destroyed C-40 Crusher 6871 | -7/Waste | Spotted C-40 Crusher 6876 | -7/Waste | Destroyed C-40 Crusher 6893 | -7/Waste | Found Damper Plating 6908 | -7/Waste | EMP discharged 6908 | -7/Waste | System corruption reached 10% 6914 | -7/Waste | Spotted C-40 Crusher 6939 | -7/Waste | Destroyed C-40 Crusher 6950 | -7/Waste | Destroyed C-40 Crusher 6977 | -7/Waste | Spotted C-40 Crusher 6992 | -7/Waste | Destroyed C-40 Crusher 7003 | -7/Waste | Spotted C-40 Crusher 7008 | -7/Waste | EMP discharged 7021 | -7/Waste | Destroyed C-40 Crusher 7108 | -7/Waste | EMP discharged 7138 | -7/Waste | Discovered new exit (range 11) 7162 | -7/Waste | Entered Factory 7537 | -7/Factory | Fabricated O-16 Technician? 7891 | -7/Factory | Identified exit to Storage 7891 | -7/Factory | Identified exit to Lower Caves 8134 | -7/Factory | Entered Lower Caves 8239 | -7/Lower Caves | Spotted B-75 Beast 8252 | -7/Lower Caves | Destroyed B-75 Beast 8327 | -7/Lower Caves | Attracted the attention of an 0b10 checkpoint 8438 | -7/Lower Caves | Build established: Hauler-Mutant 8495 | -7/Lower Caves | Encountered a Warlord checkpoint 8617 | -7/Lower Caves | Discovered new exit (range 8) 8629 | -7/Lower Caves | Entered another Lower Caves area 8637 | -7/Lower Caves | Discovered new exit (range 15) 8658 | -7/Lower Caves | Encountered a Warlord checkpoint 9002 | -7/Lower Caves | Discovered new exit (range 6) 9013 | -7/Lower Caves | Entered Data Miner 9014 | -7/Data Miner | Discovered new exit (range 7) 9052 | -7/Data Miner | Met Data Miner 9086 | -7/Data Miner | Learned location of Section 7 (-3) 9086 | -7/Data Miner | Acquired the access code to Warlord's prototype stash 9121 | -7/Data Miner | Received God Mode back door access code from Data Miner 9141 | -7/Data Miner | Destroyed Data Miner 9143 | -7/Data Miner | Interfaced with the Data Conduit 9146 | -7/Data Miner | Found Prototype Hackware 9149 | -7/Data Miner | Found Prototype Hackware 9176 | -7/Data Miner | Found Prototype Hackware 9179 | -7/Data Miner | Found Prototype Hackware 9420 | -7/Data Miner | Entered Proximity Caves 9580 | -6/Proximity Caves | Spotted B-75 Beast 9592 | -6/Proximity Caves | Destroyed B-75 Beast 9597 | -6/Proximity Caves | Spotted FL-WN7(f) 9598 | -6/Proximity Caves | Encountered a Master Thief 9598 | -6/Proximity Caves | Spotted 4U-35N(f) 9599 | -6/Proximity Caves | Encountered a Master Thief 9600 | -6/Proximity Caves | Cloak of Protection stolen by Master Thief 9601 | -6/Proximity Caves | Destroyed 4U-35N(f) 9605 | -6/Proximity Caves | Deploy-a-Sentry stolen by Master Thief 9612 | -6/Proximity Caves | Spotted Q2-GMD(f) 9612 | -6/Proximity Caves | Spotted 13-W72(f) 9613 | -6/Proximity Caves | Encountered a Master Thief 9613 | -6/Proximity Caves | Encountered a Master Thief 9615 | -6/Proximity Caves | Firepult stolen by Master Thief 9616 | -6/Proximity Caves | XL Autogun Array stolen by Master Thief 9621 | -6/Proximity Caves | Destroyed 13-W72(f) 9625 | -6/Proximity Caves | Spotted TO-67G(f) 9626 | -6/Proximity Caves | Encountered a Master Thief 9629 | -6/Proximity Caves | Exp. Heat Sink stolen by Master Thief 9633 | -6/Proximity Caves | Destroyed TO-67G(f) 9634 | -6/Proximity Caves | Spotted O1-2EK(f) 9635 | -6/Proximity Caves | Spotted NM-7TH(f) 9636 | -6/Proximity Caves | Encountered a Master Thief 9636 | -6/Proximity Caves | Encountered a Master Thief 9639 | -6/Proximity Caves | Prototype Hackware stolen by Master Thief 9641 | -6/Proximity Caves | Destroyed O1-2EK(f) 9652 | -6/Proximity Caves | Spotted EK-ZRT(f) 9654 | -6/Proximity Caves | Encountered a Master Thief 9654 | -6/Proximity Caves | Spotted 1S-BGP(f) 9655 | -6/Proximity Caves | Encountered a Master Thief 9666 | -6/Proximity Caves | Destroyed EK-ZRT(f) 9667 | -6/Proximity Caves | Prototype Hackware stolen by Master Thief 9756 | -6/Proximity Caves | Discovered new exit (range 14) 9763 | -6/Proximity Caves | Identified System Mapper 9764 | -6/Proximity Caves | Identified Ghost Barrier 9783 | -6/Proximity Caves | Entered Factory 9783 | -6/Factory | Evolved 2 slots: Propulsion x2 9784 | -6/Factory | Loaded intel: 279 machine locations 9882 | -6/Factory | Local fabrication network quarantined 9962 | -6/Factory | Fabricated Combat Drone Bay? 10042 | -6/Factory | Discovered new exit (range 16) 10049 | -6/Factory | Entered Extension 10050 | -6/Extension | Loaded intel: 31 machine locations 10070 | -6/Extension | Build established: Hacker-Mutant 10070 | -6/Extension | Rescued a captive Derelict 10335 | -6/Extension | Rescued a captive Derelict 10645 | -6/Extension | Repaired Exp. Sensor Array 10835 | -6/Extension | Allies destroyed B-75 Beast 10847 | -6/Extension | Allies destroyed B-75 Beast 10983 | -6/Extension | Rescued A7 11035 | -6/Extension | Rescued a captive Derelict 11037 | -6/Extension | Rescued a captive Derelict 11123 | -6/Extension | Rescued a captive Derelict 11136 | -6/Extension | Discovered new exit (range 10) 11136 | -6/Extension | Discovered new exit (range 6) 11437 | -6/Extension | Identified exit to Cetus 11464 | -6/Extension | Entered Cetus 11464 | -6/Cetus | Accompanied by 7 allies (A7) 11465 | -6/Cetus | Loaded intel: 24 machine locations 11469 | -6/Cetus | Acquired a Cetus Manufacturing Module code from A7 11476 | -6/Cetus | Spotted Cetus Guard 11476 | -6/Cetus | Spotted Cetus Guard 11478 | -6/Cetus | Spotted Cetus Guard 11480 | -6/Cetus | Spotted Cetus Guard 11484 | -6/Cetus | Allies destroyed Cetus Guard 11495 | -6/Cetus | Allies destroyed Cetus Guard 11499 | -6/Cetus | Allies destroyed Cetus Guard 11508 | -6/Cetus | Allies destroyed Cetus Guard 11561 | -6/Cetus | Started Cetus Manufacturing Module 11586 | -6/Cetus | Manufactured an Enhanced Grunt 11608 | -6/Cetus | Discovered new exit (range 16) 11611 | -6/Cetus | Manufactured an Enhanced Grunt 11636 | -6/Cetus | Manufactured an Enhanced Grunt 11661 | -6/Cetus | Manufactured an Enhanced Grunt 11686 | -6/Cetus | Manufactured an Enhanced Grunt 11712 | -6/Cetus | Spotted Cetus Guard 11712 | -6/Cetus | Spotted Cetus Guard 11741 | -6/Cetus | Allies destroyed Cetus Guard 11745 | -6/Cetus | Allies destroyed Cetus Guard 11747 | -6/Cetus | Spotted Cetus Guard 11747 | -6/Cetus | Spotted Cetus Guard 11748 | -6/Cetus | Allies destroyed Cetus Guard 11751 | -6/Cetus | Allies destroyed Cetus Guard 11759 | -6/Cetus | Identified exit to Archives 11788 | -6/Cetus | Destroyed A7 11791 | -6/Cetus | Extracted ID and sensor layout for unrecognized location from A7's data core 11809 | -6/Cetus | Discovered new exit (range 15) 11812 | -6/Cetus | Met Revision 17 11842 | -6/Cetus | Entered Archives 11842 | -6/Archives | Accompanied by 2 allies 11843 | -6/Archives | Loaded intel: 8 machine locations 11893 | -6/Archives | Discovered new exit (range 24) 11931 | -6/Archives | Discovered new exit (range 16) 11960 | -6/Archives | Identified exit to Hub_04(d) 11986 | -6/Archives | Entered Hub_04(d) 11986 | -6/Hub_04(d) | Accompanied by 2 allies 11987 | -6/Hub_04(d) | Loaded intel: 70 machine locations 12029 | -6/Hub_04(d) | Discovered new exit (range 15) 12062 | -6/Hub_04(d) | Network Hub disabled 12082 | -6/Hub_04(d) | Discovered new exit (range 13) 12082 | -6/Hub_04(d) | Spotted Lightning 12102 | -6/Hub_04(d) | Identified exit to Factory 12102 | -6/Hub_04(d) | Entered Factory 12102 | -5/Factory | Evolved 2 slots: Power x1, Utility x1 12103 | -5/Factory | Loaded intel: 314 machine locations 12137 | -5/Factory | Identified exit to Upper Caves 12278 | -5/Factory | Entered Upper Caves 12358 | -5/Upper Caves | Learned location of 1 exit from Factory 12358 | -5/Upper Caves | Learned Extension stockpile data 12358 | -5/Upper Caves | Learned Research terminal intel 12358 | -5/Upper Caves | Learned Factory garrison access intel 12461 | -5/Upper Caves | Discovered new exit (range 16) 12479 | -5/Upper Caves | Identified exit to Upper Caves 12481 | -5/Upper Caves | Entered another Upper Caves area 12481 | -5/Upper Caves | Discovered new exit (range 12) 12517 | -5/Upper Caves | Learned Factory stockpile data 12627 | -5/Upper Caves | Discovered new exit (range 3) 12627 | -5/Upper Caves | Identified exit to Warlord 12628 | -5/Upper Caves | Entered Warlord 12640 | -5/Warlord | System corruption cleaned by Quarantine Array 12748 | -5/Warlord | Visited the Vortex Lab 12750 | -5/Warlord | Found Prototype Energy Gun 12750 | -5/Warlord | Identified Vortex Shotgun 12769 | -5/Warlord | Warlord's base attacked by MAIN.C 12770 | -5/Warlord | Met Warlord 12774 | -5/Warlord | Opened Warlord's prototype stash 12782 | -5/Warlord | Found Vortex Chain Reactor 12784 | -5/Warlord | Found Exp. Phase Shifter 12789 | -5/Warlord | Found System Purifier 12822 | -5/Warlord | Learned Testing trap positions 12822 | -5/Warlord | Learned Armory stockpile data 12822 | -5/Warlord | Learned Research stockpile data 12822 | -5/Warlord | Learned Quarantine security intel 12822 | -5/Warlord | Learned Factory terminal intel 12822 | -5/Warlord | Learned Factory garrison access intel 12822 | -5/Warlord | Learned Armory recycling unit intel 12822 | -5/Warlord | Learned Research recycling unit intel 13119 | -5/Warlord | Warlord forces counterattacked 13463 | -5/Warlord | Spotted Striker 13612 | -5/Warlord | Spotted Striker 13617 | -5/Warlord | P-70 Sage assimilated allied QG-DDT(Y) 13622 | -5/Warlord | Spotted Striker 13649 | -5/Warlord | Opened side exit 13654 | -5/Warlord | Discovered new exit (range 11) 13659 | -5/Warlord | Spotted Striker 13661 | -5/Warlord | Identified exit to Proximity Caves 13661 | -5/Warlord | Entered Proximity Caves 13743 | -4/Proximity Caves | Discovered new exit (range 9) 13745 | -4/Proximity Caves | Identified exit to Factory 13745 | -4/Proximity Caves | Entered Factory 13745 | -4/Factory | Evolved 2 slots: Utility x2 13746 | -4/Factory | Identified exit to Research 13749 | -4/Factory | Loaded intel: 271 machine locations 13750 | -4/Factory | Loaded intel: 20 terminal locations 13751 | -4/Factory | Loaded intel: 4 garrison access locations 13763 | -4/Factory | Identified exit to Upper Caves 13763 | -4/Factory | Identified exit to Armory 13798 | -4/Factory | Manually triggered Chute Trap 13798 | -4/Factory | Sucked down chute 13798 | -4/Factory | Entered Waste 13799 | -4/Waste | Spotted C-40 Crusher 13800 | -4/Waste | 1 allies followed down the chute 13801 | -4/Waste | Spotted C-40 Crusher 13804 | -4/Waste | Spotted C-40 Crusher 13807 | -4/Waste | Spotted C-40 Crusher 13807 | -4/Waste | Spotted C-40 Crusher 13808 | -4/Waste | Discovered new exit (range 23) 13814 | -4/Waste | Identified exit to Factory 13814 | -4/Waste | Entered Factory 13815 | -4/Factory | Loaded intel: 273 machine locations 13816 | -4/Factory | Loaded intel: 4 garrison access locations 13935 | -4/Factory | Discovered exit to Armory (range 11) 13938 | -4/Factory | Entered Armory 13940 | -4/Armory | Loaded intel: 64 machine locations 13941 | -4/Armory | Loaded intel: 2 recycling unit locations 13974 | -4/Armory | Found Exp. Targeting Computer 14067 | -4/Armory | Fabricated Adv. Heavy Siege Treads? 14112 | -4/Armory | Fabricated Adv. Heavy Siege Treads (x2) 14332 | -4/Armory | Found Gamma Bomb Array 14336 | -4/Armory | Found Gamma Bomb Array 14339 | -4/Armory | Found Gamma Bomb Array 14342 | -4/Armory | Found Gamma Bomb Array 14772 | -4/Armory | Destroyed 7 combat bots 14804 | -4/Armory | Spotted B-86 Titan 14834 | -4/Armory | Destroyed B-86 Titan 15044 | -4/Armory | Discovered new exit (range 5) 15062 | -4/Armory | Entered Lab 15062 | -4/Lab | Discovered exit to Research (range 9) 15080 | -4/Lab | Hidden lab's door opened automatically 15080 | -4/Lab | Sensor layout match revealed 15081 | -4/Lab | Gained access to the hidden lab's interior 15186 | -4/Lab | Found Alien Artifact 15186 | -4/Lab | Identified Core Expander 15186 | -4/Lab | Installed Core Expander, added new Propulsion slot 15194 | -4/Lab | Found Alien Artifact 15194 | -4/Lab | Identified Integrated Reactor 15194 | -4/Lab | Installed Integrated Reactor, increased core energy generation (+10) 15232 | -4/Lab | Found Prototype Protection 15232 | -4/Lab | Identified Hvy. Regenerative Plating 15241 | -4/Lab | Found Prototype Energy Cannon 15253 | -4/Lab | Found Prototype Hackware 15288 | -4/Lab | Found Alien Artifact 15378 | -4/Lab | Found Alien Artifact 15399 | -4/Lab | Entered Research 15399 | -3/Research | Evolved 2 slots: Utility x2 15401 | -3/Research | Loaded intel: 108 machine locations 15402 | -3/Research | Loaded intel: 18 terminal locations 15403 | -3/Research | Loaded intel: 4 recycling unit locations 15446 | -3/Research | Identified Deep Network Scanner 15467 | -3/Research | Identified Potential Cannon 15599 | -3/Research | Revision forces began assault on 0b10 15679 | -3/Research | Met up with Revision 17++ 15933 | -3/Research | Discovered new exit (range 6) 16099 | -3/Research | Research terminal network offline 16133 | -3/Research | Build established: Scavenger-Mutant 16368 | -3/Research | Spotted Striker 16373 | -3/Research | Spotted Executioner 16399 | -3/Research | Found Exp. Targeting Computer 16537 | -3/Research | Spotted Striker 16542 | -3/Research | Spotted Striker 16550 | -3/Research | Entered Quarantine 16551 | -3/Quarantine | Loaded intel: 69 machine locations 16568 | -3/Quarantine | Found Alien Artifact 16613 | -3/Quarantine | Scanned by Researcher 16631 | -3/Quarantine | Cryocooling Duct disabled 16633 | -3/Quarantine | Cryocooling Duct disabled 16646 | -3/Quarantine | Ambient heat levels rising (+20) 16646 | -3/Quarantine | Non-combat units ordered to evacuate 16647 | -3/Quarantine | Found Alien Artifact 16648 | -3/Quarantine | Ambient heat levels rising (+20) 16648 | -3/Quarantine | Combat units ordered to evacuate 16748 | -3/Quarantine | Quarantine Guard activated 16798 | -3/Quarantine | Spotted Quarantine Guard 16798 | -3/Quarantine | Spotted Quarantine Guard 16798 | -3/Quarantine | Spotted Quarantine Guard 16800 | -3/Quarantine | Spotted Quarantine Guard 16800 | -3/Quarantine | Spotted Quarantine Guard 16814 | -3/Quarantine | Spotted Quarantine Guard 16816 | -3/Quarantine | Destroyed Quarantine Guard 16817 | -3/Quarantine | Destroyed Quarantine Guard 16820 | -3/Quarantine | Destroyed Quarantine Guard 16820 | -3/Quarantine | Destroyed Quarantine Guard 16825 | -3/Quarantine | Destroyed Quarantine Guard 16836 | -3/Quarantine | Destroyed Quarantine Guard 17006 | -3/Quarantine | Identified Transdimensional Reconstructor 17006 | -3/Quarantine | Identified Core Reset Matrix 17006 | -3/Quarantine | Identified Subatomic Replicator 17006 | -3/Quarantine | Identified Matter Drive 17023 | -3/Quarantine | Found Exp. Signal Interpreter 17113 | -3/Quarantine | Found Alien Artifact 17152 | -3/Quarantine | Found Alien Artifact 17152 | -3/Quarantine | Identified Phase Redirector 17177 | -3/Quarantine | Found Alien Slashing Weapon 17177 | -3/Quarantine | Identified Sigix Broadsword 17206 | -3/Quarantine | Discovered new exit (range 20) 17206 | -3/Quarantine | Spotted Quarantine Guard 17206 | -3/Quarantine | Spotted Quarantine Guard 17304 | -3/Quarantine | Intercept squad dispatched 17306 | -3/Quarantine | Spotted Tracker 17313 | -3/Quarantine | Destroyed Tracker 17314 | -3/Quarantine | Spotted Combat Programmer 17322 | -3/Quarantine | Destroyed Combat Programmer 17351 | -3/Quarantine | Found Enh. Force Lance 17353 | -3/Quarantine | Found Enh. Force Lance 17442 | -3/Quarantine | Cryocooling Duct disabled 17457 | -3/Quarantine | Ambient heat levels rising (+20) 17562 | -3/Quarantine | Build established: Hacker-Mutant 17616 | -3/Quarantine | Identified Stasis Generator 17815 | -3/Quarantine | Intercept squad dispatched 17826 | -3/Quarantine | Spotted Tracker 17835 | -3/Quarantine | Destroyed Tracker 17859 | -3/Quarantine | Spotted Combat Programmer 17870 | -3/Quarantine | Destroyed Combat Programmer 18500 | -3/Quarantine | Spotted Fortress 18595 | -3/Quarantine | Destroyed Fortress 18625 | -3/Quarantine | Found Exp. Force Field 18629 | -3/Quarantine | Found EM Dispersion Field 18638 | -3/Quarantine | Found Vortex Chain Reactor 18993 | -3/Quarantine | Discovered new exit (range 5) 18998 | -3/Quarantine | Identified exit to Section 7 19002 | -3/Quarantine | Entered Section 7 19003 | -3/Section 7 | Loaded intel: 135 machine locations 19132 | -3/Section 7 | Found Alien Artifact 19171 | -3/Section 7 | Identified Integrity Redistributor 19193 | -3/Section 7 | Build established: Scavenger-Mutant 19421 | -3/Section 7 | Found Integrity Redistributor 19480 | -3/Section 7 | Spotted S7 Guard 19496 | -3/Section 7 | Destroyed S7 Guard 19578 | -3/Section 7 | Found Alien Artifact 19663 | -3/Section 7 | Identified exit to Research 19750 | -3/Section 7 | Found Integrity Redistributor 19750 | -3/Section 7 | Used Integrity Redistributor, redistributed integrity from core (-131) 19807 | -3/Section 7 | Warped through subspace 19810 | -3/Section 7 | Identified Core Membrane 19810 | -3/Section 7 | Installed Core Membrane, gained immunity to corruption 19949 | -3/Section 7 | Crushed by falling debris 19957 | -3/Section 7 | Crushed by falling debris 19976 | -3/Section 7 | Crushed by falling debris 20009 | -3/Section 7 | Found Core Expander 20012 | -3/Section 7 | Found Core Expander 20013 | -3/Section 7 | Installed Core Expander, added new Power slot 20097 | -3/Section 7 | Found Alien Artifact 20097 | -3/Section 7 | Identified LRC Matter Compressor 20097 | -3/Section 7 | Installed LRC Matter Compressor, increased matter storage capacity (+125) 20107 | -3/Section 7 | Found LRC Matter Compressor 20107 | -3/Section 7 | Installed LRC Matter Compressor, increased matter storage capacity (+125) 20110 | -3/Section 7 | Found Alien Artifact 20110 | -3/Section 7 | Identified LRC Energy Well 20110 | -3/Section 7 | Installed LRC Energy Well, increased energy storage capacity (+250) 20180 | -3/Section 7 | Found Alien Artifact 20180 | -3/Section 7 | Identified Integrated Dissipator 20180 | -3/Section 7 | Installed Integrated Dissipator, increased core heat dissipation (+20) 20228 | -3/Section 7 | Crushed by falling debris 20587 | -3/Section 7 | Intercept squad dispatched 20602 | -3/Section 7 | Spotted Tracker 20604 | -3/Section 7 | Destroyed Tracker 20661 | -3/Section 7 | Spotted Combat Programmer 20668 | -3/Section 7 | Destroyed Combat Programmer 20883 | -3/Section 7 | Spotted Executioner 20883 | -3/Section 7 | Spotted Executioner 20893 | -3/Section 7 | Core integrity fell below 50% 20915 | -3/Section 7 | Destroyed Executioner 20918 | -3/Section 7 | Destroyed Executioner 21173 | -3/Section 7 | Crushed by falling debris 21182 | -3/Section 7 | Crushed by falling debris 21220 | -3/Section 7 | Entered Research 21220 | -2/Research | Warlord forces began assault on 0b10 21220 | -2/Research | Evolved 2 slots: Utility x2 21221 | -2/Research | Loaded intel: 108 machine locations 21330 | -2/Research | Research machine network offline 21659 | -2/Research | Borebot progress halted 21871 | -2/Research | Borebot progress halted 22012 | -2/Research | Spotted Striker 22019 | -2/Research | Destroyed Striker 22107 | -2/Research | Discovered new exit (range 13) 22126 | -2/Research | Entered Access 22126 | -1/Access | Evolved 1 slot: Utility x1 22127 | -1/Access | Loaded intel: 111 machine locations 22285 | -1/Access | Garrison activated, responded to threat 22323 | -1/Access | Build established: Generator-Mutant 22325 | -1/Access | Found Fusion Bomb Launcher 22830 | -1/Access | Intercept squad dispatched 22854 | -1/Access | Spotted Tracker 22860 | -1/Access | Destroyed Tracker 22860 | -1/Access | Spotted Tracker 22866 | -1/Access | Destroyed Tracker 22878 | -1/Access | Found Exp. Targeting Computer 22911 | -1/Access | First assault squad dispatched 22925 | -1/Access | Spotted Combat Programmer 22925 | -1/Access | Discovered new exit (range 6) 22933 | -1/Access | Entered Command 22934 | -1/Command | Loaded intel: 63 machine locations 23112 | -1/Command | Spotted Combat Programmer 23131 | -1/Command | Spotted Combat Programmer 23153 | -1/Command | Destroyed Combat Programmer 23154 | -1/Command | Spotted M Guard 23162 | -1/Command | Spotted M Guard 23177 | -1/Command | Destroyed M Guard 23208 | -1/Command | Destroyed Combat Programmer 23216 | -1/Command | Destroyed M Guard 23216 | -1/Command | All MAIN.C guards destroyed 23224 | -1/Command | First assault squad dispatched 23240 | -1/Command | Build established: Scavenger-Mutant 23290 | -1/Command | Destroyed 9 combat bots 23797 | -1/Command | Met MAIN.C 23807 | -1/Command | 0b10 Conduit disabled 24034 | -1/Command | Found Exp. Weapon Cycler 24040 | -1/Command | Found Exp. Focal Shield 24045 | -1/Command | Found Prototype Ballistic Cannon 24045 | -1/Command | Identified Omega Cannon 24808 | -1/Command | Disengaged cave seal 24808 | -1/Command | Derelicts emerged from the dark tunnel 24808 | -1/Command | Welcomed Warlord to Command 25006 | -1/Command | Warlord commented on Warlord statues 25175 | -1/Command | Build established: Generator-Mutant 25616 | -1/Command | Destroyed MAIN.C Shell 25618 | -1/Command | MAIN.C activated Command garrisons 25647 | -1/Command | Destroyed MAIN.C 25649 | *** | Establishing Free Derelict Territories! Last Messages --------------- 25642_ Blast Slug penetrates Reinforced Barrier. 25642_ Blast Slug penetrates Earth. 25645_ Blast Slug penetrates MAIN.C. 25645_ Penetrated by Slug. 25645_ Slug penetrates P-80 Master. 25645_ P-80 Master suffers critical hit. 25645_ Slug penetrates Reinforced Barrier. 25645_ Destroyed Imp. Heavy Machine Gun. 25645_ MAIN.C knocked back. 25647_ MAIN.C: "I hope you know you're still going to DIE HERE WITH ME!" 25647_ MAIN.C destroyed. 25647_ Core Membrane filtered system corruption (1). 25648_ C-30 ARC bursts open, deploying its payload. 25648_ P-80 Master unfolds itself. 25648_ P-80 Master resets P-80 Master, system corruption cleaned. 25648_ Penetrated by Slug. Warlord: Victory! Sure there's still lots to do, but without MAIN.C at the helm 0b10 doesn't stand a chance. We've got this... Map ----- +----------------------------------------------------+ | ?????????????????????????????????????????????????? | | ?????????????????????????????????????????????????? | | ?????????????????????????????????????????????????? | | ?????????????????????????????????????????????????? | | ?????????????????????????????????????????????????? | | ?????????????????????????????????????????????????? | | ?????????????????????????????????????????????????? | | ?????????????????????????????????????????????????? | | ?????????????????????????????????????????????????? | | ?????????????????????????????????????????????????? | | ?????????????????????????????????????????????????? | | ?????????????????????????????????????????????????? | | ??????????????????????????????????????? ?????? | | ????????????????????????????????????? ???? | | ??????????????????????????????????? ##? | | ??????????????????????????????????? # ## #? | | ???????????????????????????????????? # #? | | ???????????????????????????????????? # # #? | | ????????????????????????????????????? # #? | | ?#############???????????###?????????## # # ?? | | ?"""" #???????##### #######????# # #?? | | ?"" #???????? W # ###??# # #?? | | ?"" ########## h#####;##?# # #?? | | """ hg ! ;### # #?? | | """ % %== gp p% # # # # ##? | | "" @ggpgpp%% #### ### #? | | "" ######## ###;####=ph ## # ##### #? | | "" #?????# ??## ??# " ### #### ### | | "" #?????##?????#??#"" ##### # """ | | " "#???????????????# " T### # " | | " """""" #???????????????##"""+### ! #[ "" | | """""""" #????????????????## ! = | | """""""""" #?????????????????# = !*= % | | " " " " #?????????????????# /!%!! | | " " " " #?????????????????# [!] | | " " """" " #?????????????????# ! | | " " """" #?????????????????# ### ###= ## | | " " " #?????????????????######?# #?#* #? | | " """ " #????????????????????????#####?#####? | | " """" """#???????????????????????????????????? | | " #???????????????????????????????????? | | ##############???????????????????????????????????? | | ?????????????????????????????????????????????????? | | ?????????????????????????????????????????????????? | | ?????????????????????????????????????????????????? | | ?????????????????????????????????????????????????? | | ?????????????????????????????????????????????????? | | ?????????????????????????????????????????????????? | | ?????????????????????????????????????????????????? | | ?????????????????????????????????????????????????? | +----------------------------------------------------+ Best States ------------- Heat Dissipation 103 Coolant Potential 120 Energy Generation 89 Energy Capacity 1200 Matter Stores 950 Matter Capacity 1100 Sight Range 23 Robot Scan Range 30 Terrain Scan Range 16 Terrain Scan Density 60 Jamming Range 16 Cloak Strength 5 Power Amplification 30 Additional Mass Support 16 Armor Coverage 2100 Resistance: KI 30 Resistance: TH 25 Resistance: EM 90 Power Shielding 90 Utility Shielding 66 Weapon Cycling 30 Melee Speed Boost 20 Phase Shifting 20 Evasion (%) 84 Targeting Accuracy 24 Melee Accuracy 6 Launcher Accuracy 20 Target Analysis 8 Armor Integrity Analysis 66 Recoil Reduction 5 Offensive Hacking 32 Defensive Hacking 38 Item Schematics ----------------- Imp. Utility Shielding | -7/Factory | Scanalyzed Combat Drone Bay | -7/Data Miner | Free Lgt. Regenerative Plating | -7/Data Miner | Free Cmb. Gravmag System | -7/Data Miner | Free Exp. Sensor Array | -7/Data Miner | Free Exp. Terrain Scan Processor | -7/Data Miner | Free Exp. Targeting Computer | -7/Data Miner | Free Nanoactuators | -6/Factory | Hacked Cld. VTOL Module | -6/Factory | Hacked Lyr. Heavy Armor Plating | -6/Extension | Hacked Imp. Remote Datajack | -6/Extension | Hacked Nuclear Pulse Array | -6/Extension | Hacked Proton Cannon | -6/Extension | Hacked Mni. Assault Cannon | -6/Extension | Hacked Powered Armor | -6/Extension | Hacked Linear Gravjet | -5/Factory | Hacked Exp. Cesium-ion Thruster | -5/Factory | Hacked Nova Cannon | -4/Factory | Hacked Hvy. Reactive Plating | -4/Factory | Hacked Com. HERF Cannon | -4/Factory | Hacked Cmb. Antigrav System | -4/Factory | Hacked Adv. Power Amplifier | -4/Factory | Scanalyzed System Purifier | -4/Factory | Scanalyzed Enh. Nova Cannon | -3/Research | Hacked Cmb. Linear Gravjet | -3/Quarantine | Hacked Exp. Thermal Generator | -3/Quarantine | Scanalyzed Centrium Leg | -3/Quarantine | Hacked Com. Tesla Bomb Launcher | -3/Quarantine | Hacked Lgt. Particle Reactor | -3/Section 7 | Hacked Prc. Energy Filter | -3/Section 7 | Hacked Robot Schematics ------------------ O-16 Technician | -8/Materials | Hacked S-27 Virus | -7/Data Miner | Free G-50 Soldier | -7/Data Miner | Free X-72 Disruptor | -7/Data Miner | Free P-70 Sage | -7/Data Miner | Free I-36 Angel | -7/Data Miner | Free M-13 Machinist | -6/Cetus | Hacked D-63 Destroyer | -4/Armory | Hacked Fabricated ------------ O-16 Technician | x1 | -7/Factory Combat Drone Bay | x1 | -6/Factory Adv. Heavy Siege Treads | x2 | -4/Armory | Preloaded Adv. Heavy Siege Treads | x2 | -4/Armory | Preloaded Alien Tech Used ----------------- Core Expander Integrated Reactor Phase Redirector Sigix Broadsword Integrity Redistributor Transdimensional Reconstructor Core Membrane LRC Matter Compressor LRC Energy Well Integrated Dissipator Matter Drive Stasis Generator Achievements -------------- None Challenges ------------ None Game ------ Seed GhostLayeredArray Manual? 0 Play Time 05:18:15 Cumulative 1656.1 hours Start 2020.10.05 @ 17:11:39 End 2020.10.06 @ 02:46:24 Sessions 3 Manual Loads 0 Difficulty Rogue Special Mode None Game No. 2478 Rogue 2471 Adventurer 0 Explorer 7 Win Type 7 Total 155 Types 41/21/59/3/3/5/20/2/1 Lore% 99 Gallery% 99 Achievement% 100 Wizard Run 0 Options --------- ASCII 0 Keyboard 1 Movement Numpad Keybinds 1 Fullscreen 1 Font 18/SmallcapsGlow Map View 76x50 Tactical HUD 1 Map Filters NONE Filters NONE Steam 1 RUN: dfdbb4e7-6484-4db3-8295-78297e7cf3e6